Workbook

Sheet Stavba
C2: Položkový rozpočet stavby | H2: Datum: | I2: =TODAY() -> 2023-04-03
C5: Stavba : | D5: 3341 | E5: Přepojení ČSOV Hančova bouda Benecko
C7: Objednatel : | D7: Vodohospodářské sdružení Turnov | H7: IČO : | I7: 49295934
D8: Antonína Dvořáka 287 | H8: DIČ : | I8: CZ49295934
C9: 51101 | D9: Turnov
C11: Zhotovitel : | D11: . | H11: IČO :
H12: DIČ :
C14: Za zhotovitele : | H14: Za objednatele :
C16: _______________ | H16: _______________
J18: Rozpočtové náklady
B19: Základ pro DPH | D19: 15 | E19: % | I19: =ROUND(G33,0) -> 0
B20: DPH | D20: =SazbaDPH1 -> 15 | E20: % | I20: =ROUND(I19*D20/100,0) -> 0
B21: Základ pro DPH | D21: 21 | E21: % | I21: =ROUND(H33,0) -> 80000
B22: DPH | D22: =SazbaDPH2 -> 21 | E22: % | I22: =ROUND(I21*D21/100,0) -> 16800
B23: Cena celkem za stavbu | I23: =SUM(I19:I22) -> 96800
B26: Rekapitulace stavebních objektů a provozních souborů
B28: Číslo a název objektu / provozního souboru | F28: Cena celkem | G28: =CONCATENATE("Základ DPH ",SazbaDPH1," %") -> Základ DPH 15 % | H28: =CONCATENATE("Základ DPH ",SazbaDPH2," %") -> Základ DPH 21 % | I28: DPH celkem | J28: %
B29: 01 | C29: Gravitační stoka A, B | F29: =G29+H29+I29 -> 0 | G29: 0 | H29: =SUM(H38) -> 0 | I29: =(G29*SazbaDPH1)/100+(H29*SazbaDPH2)/100 -> 0 | J29: =IF(CelkemObjekty=0,"",F29/CelkemObjekty*100) -> 0
B30: 02 | C30: Podružný kanalizační řád B-1 | F30: =G30+H30+I30 -> 0 | G30: 0 | H30: =SUM(H39) -> 0 | I30: 0 | J30: 0
B31: OaVNS | C31: Ostatní a vedlejší náklady stavby | F31: 0 | G31: 0 | H31: =SUM(OaVNS!G29) -> 0 | I31: 0 | J31: 0
B32: PR | C32: Povinná rezerva | F32: 96800 | G32: 0 | H32: 80000 | I32: 16800 | J32: 100
B33: Celkem za stavbu | F33: =SUM(F29:F32) -> 96800 | G33: =SUM(G29:G32) -> 0 | H33: =SUM(H29:H32) -> 80000 | I33: =SUM(I29:I32) -> 16800 | J33: =IF(CelkemObjekty=0,"",F33/CelkemObjekty*100) -> 100
B35: Rekapitulace stavebních rozpočtů
B37: Číslo objektu | C37: Číslo a název rozpočtu | F37: Cena celkem | G37: =CONCATENATE("Základ DPH ",SazbaDPH1," %") -> Základ DPH 15 % | H37: =CONCATENATE("Základ DPH ",SazbaDPH2," %") -> Základ DPH 21 % | I37: DPH celkem | J37: %
B38: 01 | C38: 3341/01 Gravitační stoka A, B | F38: =G38+H38+I38 -> 0 | G38: 0 | H38: =SUM(T24+'01 334101 KL'!C23) -> 0 | I38: =(G38*SazbaDPH1)/100+(H38*SazbaDPH2)/100 -> 0 | J38: =IF(CelkemObjekty=0,"",F38/CelkemObjekty*100) -> 0
B39: 02 | C39: 3341/02 Podružný kanalizační řád B-1 | F39: =G39+H39+I39 -> 0 | G39: 0 | H39: =SUM('02 334102 KL'!C23) -> 0 | I39: 0 | J39: 0
B40: Celkem za stavbu | F40: =SUM(F38:F39) -> 0 | G40: =SUM(G38:G39) -> 0 | H40: =SUM(H38:H39) -> 0 | I40: =SUM(I38:I39) -> 0 | J40: =IF(CelkemObjekty=0,"",F40/CelkemObjekty*100) -> 0

Sheet 01 334101 KL
A1: POLOŽKOVÝ ROZPOČET
A2: Rozpočet | C2: 3341/01 | D2: Gravitační stoka A, B | F2: JKSO | G2: 827.21.A3
A4: Objekt | F4: SKP
A5: 01 | C5: Gravitační stoka A, B | F5: Měrná jednotka | G5: m
A6: Stavba | F6: Počet jednotek | G6: 184.79
A7: 3341 | C7: Přepojení ČSOV Hančova bouda Benecko | F7: Náklady na m.j. | G7: =IF(G6=0,,ROUND((F30+F32)/G6,1)) -> 0
A8: Projektant | C8: Vodohospodářské inženýrské služby a.s. | F8: Typ rozpočtu
A9: Zpracovatel projektu
A10: Objednatel | C10: Vodohospodářské sdružení Turnov
A11: Dodavatel | C11: . | F11: Zakázkové číslo
A12: Rozpočtoval | F12: Počet listů
A13: ROZPOČTOVÉ NÁKLADY
A14: Základní rozpočtové náklady
B15: HSV celkem | C15: ='01 334101 Rek'!E13 -> 0
A16: Z | B16: PSV celkem | C16: ='01 334101 Rek'!F13 -> 0
A17: R | B17: M práce celkem | C17: ='01 334101 Rek'!H13 -> 0
A18: N | B18: M dodávky celkem | C18: ='01 334101 Rek'!G13 -> 0
A19: ZRN celkem | C19: =SUM(C15:C18) -> 0
A21: HZS | C21: ='01 334101 Rek'!I13 -> 0
A22: ZRN+HZS | C22: =C19+C21 -> 0
A23: ZRN+ost.náklady+HZS | C23: =C22+G23 -> 0
A24: Vypracoval | D24: Za zhotovitele | F24: Za objednatele
A25: Jméno : | D25: Jméno : | F25: Jméno :
A26: Datum : | D26: Datum : | F26: Datum :
A28: Podpis : | D28: Podpis: | F28: Podpis:
A30: Základ pro DPH | C30: 21 | D30: % | F30: =C23-F32 -> 0
A31: DPH | C31: =C30 -> 21 | D31: % | F31: =ROUND(PRODUCT(F30,C31/100),0) -> 0
A32: Základ pro DPH | C32: 0 | D32: % | F32: 0
A33: DPH | C33: =C32 -> 0 | D33: % | F33: =ROUND(PRODUCT(F32,C33/100),0) -> 0
A34: CENA ZA OBJEKT CELKEM | F34: =ROUND(SUM(F30:F33),0) -> 0
A36: Poznámka :

Sheet 01 334101 Rek
A1: Stavba : | C1: 3341 Přepojení ČSOV Hančova bouda Benecko | G1: Rozpočet : | H1: 3341/01
A2: Objekt : | C2: 01 Gravitační stoka A, B | G2: Gravitační stoka A, B
A4: REKAPITULACE STAVEBNÍCH DÍLŮ
B6: Stavební díl | E6: HSV | F6: PSV | G6: Dodávka | H6: Montáž | I6: HZS
A7: ='01 334101 Pol'!B7 -> 1 | B7: ='01 334101 Pol'!C7 -> Zemní práce | E7: ='01 334101 Pol'!BA282 -> 0 | F7: ='01 334101 Pol'!BB282 -> 0 | G7: ='01 334101 Pol'!BC282 -> 0 | H7: ='01 334101 Pol'!BD282 -> 0 | I7: ='01 334101 Pol'!BE282 -> 0
A8: ='01 334101 Pol'!B283 -> 2 | B8: ='01 334101 Pol'!C283 -> Základy a zvláštní zakládání | E8: ='01 334101 Pol'!BA294 -> 0 | F8: ='01 334101 Pol'!BB294 -> 0 | G8: ='01 334101 Pol'!BC294 -> 0 | H8: ='01 334101 Pol'!BD294 -> 0 | I8: ='01 334101 Pol'!BE294 -> 0
A9: ='01 334101 Pol'!B295 -> 45 | B9: ='01 334101 Pol'!C295 -> Podkladní a vedlejší konstrukce | E9: ='01 334101 Pol'!BA316 -> 0 | F9: ='01 334101 Pol'!BB316 -> 0 | G9: ='01 334101 Pol'!BC316 -> 0 | H9: ='01 334101 Pol'!BD316 -> 0 | I9: ='01 334101 Pol'!BE316 -> 0
A10: ='01 334101 Pol'!B317 -> 5 | B10: ='01 334101 Pol'!C317 -> Komunikace | E10: ='01 334101 Pol'!BA333 -> 0 | F10: ='01 334101 Pol'!BB333 -> 0 | G10: ='01 334101 Pol'!BC333 -> 0 | H10: ='01 334101 Pol'!BD333 -> 0 | I10: ='01 334101 Pol'!BE333 -> 0
A11: ='01 334101 Pol'!B334 -> 8 | B11: ='01 334101 Pol'!C334 -> Trubní vedení | E11: ='01 334101 Pol'!BA440 -> 0 | F11: ='01 334101 Pol'!BB440 -> 0 | G11: ='01 334101 Pol'!BC440 -> 0 | H11: ='01 334101 Pol'!BD440 -> 0 | I11: ='01 334101 Pol'!BE440 -> 0
A12: ='01 334101 Pol'!B441 -> 99 | B12: ='01 334101 Pol'!C441 -> Staveništní přesun hmot | E12: ='01 334101 Pol'!BA443 -> 0 | F12: ='01 334101 Pol'!BB443 -> 0 | G12: ='01 334101 Pol'!BC443 -> 0 | H12: ='01 334101 Pol'!BD443 -> 0 | I12: ='01 334101 Pol'!BE443 -> 0
B13: CELKEM OBJEKT | E13: =SUM(E7:E12) -> 0 | F13: =SUM(F7:F12) -> 0 | G13: =SUM(G7:G12) -> 0 | H13: =SUM(H7:H12) -> 0 | I13: =SUM(I7:I12) -> 0

Sheet 01 334101 Pol
A1: Položkový rozpočet
A3: Stavba : | C3: 3341 Přepojení ČSOV Hančova bouda Benecko | E3: Rozpočet: | F3: ='01 334101 Rek'!H1 -> 3341/01
A4: Objekt : | C4: 01 Gravitační stoka A, B | E4: ='01 334101 Rek'!G2 -> Gravitační stoka A, B
A6: P.č. | B6: Číslo položky | C6: Název položky | D6: MJ | E6: množství | F6: cena / MJ | G6: celkem (Kč) | H6: Jednotková hmotnost | I6: Celková hmotnost | J6: Jednotková dem.hmot. | K6: Celková dem.hmot.
A7: Díl: | B7: 1 | C7: Zemní práce | O7: 1
A8: 1 | B8: 111200001RA0 | C8: Odstranění křovin a stromů do 100 mm, spálení | D8: m2 | E8: 20 | G8: =E8*F8 -> 0 | H8: 5e-05 | I8: =E8*H8 -> 0.001 | J8: 0 | K8: =E8*J8 -> 0 | O8: 2 | AA8: 1 | AB8: 1 | AC8: 1 | AZ8: 1 | BA8: =IF(AZ8=1,G8,0) -> 0 | BB8: =IF(AZ8=2,G8,0) -> 0 | BC8: =IF(AZ8=3,G8,0) -> 0 | BD8: =IF(AZ8=4,G8,0) -> 0 | BE8: =IF(AZ8=5,G8,0) -> 0 | CA8: 1 | CB8: 1
A9: 2 | B9: 113107520R00 | C9: Odstranění podkladu pl. 50 m2,kam.drcené tl.20 cm | D9: m2 | E9: 79.5 | G9: =E9*F9 -> 0 | H9: 0 | I9: =E9*H9 -> 0 | J9: -0.44 | K9: =E9*J9 -> -34.98 | O9: 2 | AA9: 1 | AB9: 1 | AC9: 1 | AZ9: 1 | BA9: =IF(AZ9=1,G9,0) -> 0 | BB9: =IF(AZ9=2,G9,0) -> 0 | BC9: =IF(AZ9=3,G9,0) -> 0 | BD9: =IF(AZ9=4,G9,0) -> 0 | BE9: =IF(AZ9=5,G9,0) -> 0 | CA9: 1 | CB9: 1
C10: Napojení stoky:3,00*1,50 | E10: 4.5 | M10: Napojení stoky:3,00*1,50
C11: Stoka (dílčí stěrkové povrchy):43,00 | E11: 43 | M11: Stoka (dílčí stěrkové povrchy):43,00
C12: Zpevněné plochy:13,00+19,00 | E12: 32 | M12: Zpevněné plochy:13,00+19,00
A13: 3 | B13: 113108310R00 | C13: Odstranění asfaltové vrstvy pl. do 50 m2, tl.10 cm | D13: m2 | E13: 4.5 | G13: =E13*F13 -> 0 | H13: 0 | I13: =E13*H13 -> 0 | J13: -0.22 | K13: =E13*J13 -> -0.99 | O13: 2 | AA13: 1 | AB13: 1 | AC13: 1 | AZ13: 1 | BA13: =IF(AZ13=1,G13,0) -> 0 | BB13: =IF(AZ13=2,G13,0) -> 0 | BC13: =IF(AZ13=3,G13,0) -> 0 | BD13: =IF(AZ13=4,G13,0) -> 0 | BE13: =IF(AZ13=5,G13,0) -> 0 | CA13: 1 | CB13: 1
C14: Napojení stoky:3,00*1,50 | E14: 4.5 | M14: Napojení stoky:3,00*1,50
A15: 4 | B15: 115101201R00 | C15: Čerpání vody na výšku do 10 m, přítok do 500 l/min | D15: h | E15: 50 | G15: =E15*F15 -> 0 | H15: 0 | I15: =E15*H15 -> 0 | J15: 0 | K15: =E15*J15 -> 0 | O15: 2 | AA15: 1 | AB15: 1 | AC15: 1 | AZ15: 1 | BA15: =IF(AZ15=1,G15,0) -> 0 | BB15: =IF(AZ15=2,G15,0) -> 0 | BC15: =IF(AZ15=3,G15,0) -> 0 | BD15: =IF(AZ15=4,G15,0) -> 0 | BE15: =IF(AZ15=5,G15,0) -> 0 | CA15: 1 | CB15: 1
A16: 5 | B16: 121100002RAA | C16: Sejmutí ornice a uložení na deponii zpětný přesun, rozprostření v tl. 20 cm, osetí | D16: m3 | E16: 87.9 | G16: =E16*F16 -> 0 | H16: 0 | I16: =E16*H16 -> 0 | J16: 0 | K16: =E16*J16 -> 0 | O16: 2 | AA16: 1 | AB16: 1 | AC16: 1 | AZ16: 1 | BA16: =IF(AZ16=1,G16,0) -> 0 | BB16: =IF(AZ16=2,G16,0) -> 0 | BC16: =IF(AZ16=3,G16,0) -> 0 | BD16: =IF(AZ16=4,G16,0) -> 0 | BE16: =IF(AZ16=5,G16,0) -> 0 | CA16: 1 | CB16: 1
C17: Stoka "A" PVC DN250 Š1 až Š2 km 0,179.67 až km 0,184.79: | E17: 0 | M17: Stoka "A" PVC DN250 Š1 až Š2 km 0,179.67 až km 0,184.79:
C18: Udržovací práce - Stoka PVC DN250 nasunutá do ocelové chráničky mezi Š2 a Š3 km 0,152.00 až 0,179.67: | E18: 0 | M18: Udržovací práce - Stoka PVC DN250 nasunutá do ocelové chráničky mezi Š2 a Š3 km 0,152.00 až 0,179.67:
C19: Stoka "B" PVC DN250 Š2 až Š7 km 0,000 až 0,152.00: | E19: 0 | M19: Stoka "B" PVC DN250 Š2 až Š7 km 0,000 až 0,152.00:
C20: Ornice:146,50*3,00*0,20 | E20: 87.9 | M20: Ornice:146,50*3,00*0,20
A21: 6 | B21: 122201102R00 | C21: Odkopávky nezapažené v hor. 3 do 1000 m3 | D21: m3 | E21: 9.6 | G21: =E21*F21 -> 0 | H21: 0 | I21: =E21*H21 -> 0 | J21: 0 | K21: =E21*J21 -> 0 | O21: 2 | AA21: 1 | AB21: 1 | AC21: 1 | AZ21: 1 | BA21: =IF(AZ21=1,G21,0) -> 0 | BB21: =IF(AZ21=2,G21,0) -> 0 | BC21: =IF(AZ21=3,G21,0) -> 0 | BD21: =IF(AZ21=4,G21,0) -> 0 | BE21: =IF(AZ21=5,G21,0) -> 0 | CA21: 1 | CB21: 1
C22: Vybudování ZP:(13,00+19,00)*0,30 | E22: 9.6 | M22: Vybudování ZP:(13,00+19,00)*0,30
A23: 7 | B23: 122201109R00 | C23: Příplatek za lepivost - odkopávky v hor. 3 | D23: m3 | E23: 9.6 | G23: =E23*F23 -> 0 | H23: 0 | I23: =E23*H23 -> 0 | J23: 0 | K23: =E23*J23 -> 0 | O23: 2 | AA23: 1 | AB23: 1 | AC23: 1 | AZ23: 1 | BA23: =IF(AZ23=1,G23,0) -> 0 | BB23: =IF(AZ23=2,G23,0) -> 0 | BC23: =IF(AZ23=3,G23,0) -> 0 | BD23: =IF(AZ23=4,G23,0) -> 0 | BE23: =IF(AZ23=5,G23,0) -> 0 | CA23: 1 | CB23: 1
C24: Vybudování ZP:(13,00+19,00)*0,30 | E24: 9.6 | M24: Vybudování ZP:(13,00+19,00)*0,30
A25: 8 | B25: 130001101RRX | C25: Příplatek za ztížené hloubení v blízkosti vedení | D25: m3 | E25: 39.012 | G25: =E25*F25 -> 0 | H25: 0 | I25: =E25*H25 -> 0 | J25: 0 | K25: =E25*J25 -> 0 | O25: 2 | AA25: 1 | AB25: 1 | AC25: 1 | AZ25: 1 | BA25: =IF(AZ25=1,G25,0) -> 0 | BB25: =IF(AZ25=2,G25,0) -> 0 | BC25: =IF(AZ25=3,G25,0) -> 0 | BD25: =IF(AZ25=4,G25,0) -> 0 | BE25: =IF(AZ25=5,G25,0) -> 0 | CA25: 1 | CB25: 1
C26: Včetně případných nutných dokopávem a ručního výkopu podél sousedících inženýrských sítí | L26: Včetně případných nutných dokopávem a ručního výkopu podél sousedících inženýrských sítí | O26: 3
C27: Stoka "A" PVC DN250 Š1 až Š2 km 0,179.67 až km 0,184.79: | E27: 0 | M27: Stoka "A" PVC DN250 Š1 až Š2 km 0,179.67 až km 0,184.79:
C28: Udržovací práce - Stoka PVC DN250 nasunutá do ocelové chráničky mezi Š2 a Š3 km 0,152.00 až 0,179.67: | E28: 0 | M28: Udržovací práce - Stoka PVC DN250 nasunutá do ocelové chráničky mezi Š2 a Š3 km 0,152.00 až 0,179.67:
C29: Stoka "B" PVC DN250 Š2 až Š7 km 0,000 až 0,152.00: | E29: 0 | M29: Stoka "B" PVC DN250 Š2 až Š7 km 0,000 až 0,152.00:
C30: Začátek provozního součtu | E30: 0 | M30: Začátek provozního součtu
C31: Výkopy:325,1004 | E31: 325.1004 | M31: Výkopy:325,1004
C32: Konec provozního součtu | E32: 325.1004 | M32: Konec provozního součtu
C33: V hornině tř. 3 - 5 - 12%:325,1004*0,12 | E33: 39.012 | M33: V hornině tř. 3 - 5 - 12%:325,1004*0,12
A34: 9 | B34: 130901123RT3 | C34: Bourání konstrukcí ze železobetonu ve vykopávkách bagrem s kladivem | D34: m3 | E34: 2.2156 | G34: =E34*F34 -> 0 | H34: 0 | I34: =E34*H34 -> 0 | J34: 0 | K34: =E34*J34 -> 0 | O34: 2 | AA34: 1 | AB34: 1 | AC34: 1 | AZ34: 1 | BA34: =IF(AZ34=1,G34,0) -> 0 | BB34: =IF(AZ34=2,G34,0) -> 0 | BC34: =IF(AZ34=3,G34,0) -> 0 | BD34: =IF(AZ34=4,G34,0) -> 0 | BE34: =IF(AZ34=5,G34,0) -> 0 | CA34: 1 | CB34: 1
C35: Položka obsahuje odstranění materiálu obklopujícího betonové a železobetonové konstrukce v míře nutné pro vyzvednutí, rozpojení konstrukcí, uchopení a vyzvednutí konstrukce z výkopu a uložení na dopravní prostředek včetně odvozu na skládku zhotovitele a poplatek za skládku. | L35: Položka obsahuje odstranění materiálu obklopujícího betonové a železobetonové konstrukce v míře nutné pro vyzvednutí, rozpojení konstrukcí, uchopení a vyzvednutí konstrukce z výkopu a uložení na dopravní prostředek včetně odvozu na skládku zhotovitele a poplatek za skládku. | O35: 3
C36: Odstranění stávající šachty ČSOV:2,2156 | E36: 2.2156 | M36: Odstranění stávající šachty ČSOV:2,2156
A37: 10 | B37: 132201212R00 | C37: Hloubení rýh š.do 200 cm hor.3 do 1000m3,STROJNĚ | D37: m3 | E37: 146.2952 | G37: =E37*F37 -> 0 | H37: 0 | I37: =E37*H37 -> 0 | J37: 0 | K37: =E37*J37 -> 0 | O37: 2 | AA37: 1 | AB37: 1 | AC37: 1 | AZ37: 1 | BA37: =IF(AZ37=1,G37,0) -> 0 | BB37: =IF(AZ37=2,G37,0) -> 0 | BC37: =IF(AZ37=3,G37,0) -> 0 | BD37: =IF(AZ37=4,G37,0) -> 0 | BE37: =IF(AZ37=5,G37,0) -> 0 | CA37: 1 | CB37: 1
C38: Položka obsahuje hloubení rýh traktorbagrem, naložení výkopku na dopravní prostředek pro svislé, nebo vodorovné přemístění, popř. přemístění výkopku do 3 m (po povrchu území), případné zajištění rypadel polštáři, udržování pracoviště a ochranu výkopiště proti stékání srážkové vody z okolního terénu i s jejím odvodněním, nebo odvedením, přesekání a odstranění kořenů ve výkopišti, odstranění napadávek, urovnání dna výkopu. | L38: Položka obsahuje hloubení rýh traktorbagrem, naložení výkopku na dopravní prostředek pro svislé, nebo vodorovné přemístění, popř. přemístění výkopku do 3 m (po povrchu území), případné zajištění rypadel polštáři, udržování pracoviště a ochranu výkopiště proti stékání srážkové vody z okolního terénu i s jejím odvodněním, nebo odvedením, přesekání a odstranění kořenů ve výkopišti, odstranění napadávek, urovnání dna výkopu. | O38: 3
C39: Začátek provozního součtu | E39: 0 | M39: Začátek provozního součtu
C40: Stoka "A" PVC DN250 Š1 až Š2 km 0,179.67 až km 0,184.79: | E40: 0 | M40: Stoka "A" PVC DN250 Š1 až Š2 km 0,179.67 až km 0,184.79:
C41: Udržovací práce - Stoka PVC DN250 nasunutá do ocelové chráničky mezi Š2 a Š3 km 0,152.00 až 0,179.67: | E41: 0 | M41: Udržovací práce - Stoka PVC DN250 nasunutá do ocelové chráničky mezi Š2 a Š3 km 0,152.00 až 0,179.67:
C42: Stoka "B" PVC DN250 Š2 až Š7 km 0,000 až 0,152.00: | E42: 0 | M42: Stoka "B" PVC DN250 Š2 až Š7 km 0,000 až 0,152.00:
C43: Prostor pro napojení Š7:1,50*3,00*1,67 | E43: 7.515 | M43: Prostor pro napojení Š7:1,50*3,00*1,67
C44: 5,55*1,20*(1,67+2,81)/2 | E44: 14.9184 | M44: 5,55*1,20*(1,67+2,81)/2
C45: (7,66-5,55)*1,20*(2,81+2,54)/2 | E45: 6.7731 | M45: (7,66-5,55)*1,20*(2,81+2,54)/2
C46: (11,59-7,66)*1,00*(2,54+1,85)/2 | E46: 8.6264 | M46: (11,59-7,66)*1,00*(2,54+1,85)/2
C47: (24,16-11,59)*1,00*(1,85+1,65)/2 | E47: 21.9975 | M47: (24,16-11,59)*1,00*(1,85+1,65)/2
C48: (104,46-24,16)*1,00*(1,65+2,00)/2 | E48: 146.5475 | M48: (104,46-24,16)*1,00*(1,65+2,00)/2
C49: (109,91-104,46)*1,20*(1,66+3,22)/2 | E49: 15.9576 | M49: (109,91-104,46)*1,20*(1,66+3,22)/2
C50: (112,81-109,91)*1,20*(3,22+3,17)/2 | E50: 11.1186 | M50: (112,81-109,91)*1,20*(3,22+3,17)/2
C51: (123,09-112,81)*1,00*(2,25+1,60)/2 | E51: 19.789 | M51: (123,09-112,81)*1,00*(2,25+1,60)/2
C52: (141,35-123,09)*1,00*(1,60+2,37)/2 | E52: 36.2461 | M52: (141,35-123,09)*1,00*(1,60+2,37)/2
C53: (152,00-141,35)*1,00*(2,37+1,75)/2 | E53: 21.939 | M53: (152,00-141,35)*1,00*(2,37+1,75)/2
C54: Startovací jáma:5,00*2,00*2,20 | E54: 22 | M54: Startovací jáma:5,00*2,00*2,20
C55: Cílová jáma:2,00*2,00*2,20 | E55: 8.8 | M55: Cílová jáma:2,00*2,00*2,20
C56: (185,79-179,67)*1,00*(2,14+2,15)/2 | E56: 13.1274 | M56: (185,79-179,67)*1,00*(2,14+2,15)/2
C57: Prohloubení pro RŠ:1,60*1,60*0,20*5 | E57: 2.56 | M57: Prohloubení pro RŠ:1,60*1,60*0,20*5
C58: Rozšíření pro RŠ:1,60*(1,60-1,20)*(2,65+3,17) | E58: 3.7248 | M58: Rozšíření pro RŠ:1,60*(1,60-1,20)*(2,65+3,17)
C59: 1,60*(1,60-1,00)*(1,85+2,15) | E59: 3.84 | M59: 1,60*(1,60-1,00)*(1,85+2,15)
C60: Odpočet objemu ornice:-31,6800 | E60: -31.68 | M60: Odpočet objemu ornice:-31,6800
C61: Odpočet objemu komunikací a štěrkových ploch:-8,7000 | E61: -8.7 | M61: Odpočet objemu komunikací a štěrkových ploch:-8,7000
C62: Konec provozního součtu | E62: 325.1004 | M62: Konec provozního součtu
C63: V hornině tř. 3 - 45%:325,1004*0,45 | E63: 146.2952 | M63: V hornině tř. 3 - 45%:325,1004*0,45
A64: 11 | B64: 132201219R00 | C64: Přípl.za lepivost,hloubení rýh 200cm,hor.3,STROJNĚ | D64: m3 | E64: 73.1476 | G64: =E64*F64 -> 0 | H64: 0 | I64: =E64*H64 -> 0 | J64: 0 | K64: =E64*J64 -> 0 | O64: 2 | AA64: 1 | AB64: 1 | AC64: 1 | AZ64: 1 | BA64: =IF(AZ64=1,G64,0) -> 0 | BB64: =IF(AZ64=2,G64,0) -> 0 | BC64: =IF(AZ64=3,G64,0) -> 0 | BD64: =IF(AZ64=4,G64,0) -> 0 | BE64: =IF(AZ64=5,G64,0) -> 0 | CA64: 1 | CB64: 1
C65: Začátek provozního součtu | E65: 0 | M65: Začátek provozního součtu
C66: Stoka "A" PVC DN250 Š1 až Š2 km 0,179.67 až km 0,184.79: | E66: 0 | M66: Stoka "A" PVC DN250 Š1 až Š2 km 0,179.67 až km 0,184.79:
C67: Udržovací práce - Stoka PVC DN250 nasunutá do ocelové chráničky mezi Š2 a Š3 km 0,152.00 až 0,179.67: | E67: 0 | M67: Udržovací práce - Stoka PVC DN250 nasunutá do ocelové chráničky mezi Š2 a Š3 km 0,152.00 až 0,179.67:
C68: Stoka "B" PVC DN250 Š2 až Š7 km 0,000 až 0,152.00: | E68: 0 | M68: Stoka "B" PVC DN250 Š2 až Š7 km 0,000 až 0,152.00:
C69: Prostor pro napojení Š7:1,50*3,00*1,67 | E69: 7.515 | M69: Prostor pro napojení Š7:1,50*3,00*1,67
C70: 5,55*1,20*(1,67+2,81)/2 | E70: 14.9184 | M70: 5,55*1,20*(1,67+2,81)/2
C71: (7,66-5,55)*1,20*(2,81+2,54)/2 | E71: 6.7731 | M71: (7,66-5,55)*1,20*(2,81+2,54)/2
C72: (11,59-7,66)*1,00*(2,54+1,85)/2 | E72: 8.6264 | M72: (11,59-7,66)*1,00*(2,54+1,85)/2
C73: (24,16-11,59)*1,00*(1,85+1,65)/2 | E73: 21.9975 | M73: (24,16-11,59)*1,00*(1,85+1,65)/2
C74: (104,46-24,16)*1,00*(1,65+2,00)/2 | E74: 146.5475 | M74: (104,46-24,16)*1,00*(1,65+2,00)/2
C75: (109,91-104,46)*1,20*(1,66+3,22)/2 | E75: 15.9576 | M75: (109,91-104,46)*1,20*(1,66+3,22)/2
C76: (112,81-109,91)*1,20*(3,22+3,17)/2 | E76: 11.1186 | M76: (112,81-109,91)*1,20*(3,22+3,17)/2
C77: (123,09-112,81)*1,00*(2,25+1,60)/2 | E77: 19.789 | M77: (123,09-112,81)*1,00*(2,25+1,60)/2
C78: (141,35-123,09)*1,00*(1,60+2,37)/2 | E78: 36.2461 | M78: (141,35-123,09)*1,00*(1,60+2,37)/2
C79: (152,00-141,35)*1,00*(2,37+1,75)/2 | E79: 21.939 | M79: (152,00-141,35)*1,00*(2,37+1,75)/2
C80: Startovací jáma:5,00*2,00*2,20 | E80: 22 | M80: Startovací jáma:5,00*2,00*2,20
C81: Cílová jáma:2,00*2,00*2,20 | E81: 8.8 | M81: Cílová jáma:2,00*2,00*2,20
C82: (185,79-179,67)*1,00*(2,14+2,15)/2 | E82: 13.1274 | M82: (185,79-179,67)*1,00*(2,14+2,15)/2
C83: Prohloubení pro RŠ:1,60*1,60*0,20*5 | E83: 2.56 | M83: Prohloubení pro RŠ:1,60*1,60*0,20*5
C84: Rozšíření pro RŠ:1,60*(1,60-1,20)*(2,65+3,17) | E84: 3.7248 | M84: Rozšíření pro RŠ:1,60*(1,60-1,20)*(2,65+3,17)
C85: 1,60*(1,60-1,00)*(1,85+2,15) | E85: 3.84 | M85: 1,60*(1,60-1,00)*(1,85+2,15)
C86: Odpočet objemu ornice:-31,6800 | E86: -31.68 | M86: Odpočet objemu ornice:-31,6800
C87: Odpočet objemu komunikací a štěrkových ploch:-8,7000 | E87: -8.7 | M87: Odpočet objemu komunikací a štěrkových ploch:-8,7000
C88: Konec provozního součtu | E88: 325.1004 | M88: Konec provozního součtu
C89: V hornině tř. 3 - 45%:325,1004*0,45*0,5 | E89: 73.1476 | M89: V hornině tř. 3 - 45%:325,1004*0,45*0,5
A90: 12 | B90: 132301212R00 | C90: Hloubení rýh š.do 200 cm hor.4 do 1000 m3, STROJNĚ | D90: m3 | E90: 146.2952 | G90: =E90*F90 -> 0 | H90: 0 | I90: =E90*H90 -> 0 | J90: 0 | K90: =E90*J90 -> 0 | O90: 2 | AA90: 1 | AB90: 1 | AC90: 1 | AZ90: 1 | BA90: =IF(AZ90=1,G90,0) -> 0 | BB90: =IF(AZ90=2,G90,0) -> 0 | BC90: =IF(AZ90=3,G90,0) -> 0 | BD90: =IF(AZ90=4,G90,0) -> 0 | BE90: =IF(AZ90=5,G90,0) -> 0 | CA90: 1 | CB90: 1
C91: Položka obsahuje hloubení rýh traktorbagrem, naložení výkopku na dopravní prostředek pro svislé, nebo vodorovné přemístění, popř. přemístění výkopku do 3 m (po povrchu území), případné zajištění rypadel polštáři, udržování pracoviště a ochranu výkopiště proti stékání srážkové vody z okolního terénu i s jejím odvodněním, nebo odvedením, přesekání a odstranění kořenů ve výkopišti, odstranění napadávek, urovnání dna výkopu. | L91: Položka obsahuje hloubení rýh traktorbagrem, naložení výkopku na dopravní prostředek pro svislé, nebo vodorovné přemístění, popř. přemístění výkopku do 3 m (po povrchu území), případné zajištění rypadel polštáři, udržování pracoviště a ochranu výkopiště proti stékání srážkové vody z okolního terénu i s jejím odvodněním, nebo odvedením, přesekání a odstranění kořenů ve výkopišti, odstranění napadávek, urovnání dna výkopu. | O91: 3
C92: Začátek provozního součtu | E92: 0 | M92: Začátek provozního součtu
C93: Stoka "A" PVC DN250 Š1 až Š2 km 0,179.67 až km 0,184.79: | E93: 0 | M93: Stoka "A" PVC DN250 Š1 až Š2 km 0,179.67 až km 0,184.79:
C94: Udržovací práce - Stoka PVC DN250 nasunutá do ocelové chráničky mezi Š2 a Š3 km 0,152.00 až 0,179.67: | E94: 0 | M94: Udržovací práce - Stoka PVC DN250 nasunutá do ocelové chráničky mezi Š2 a Š3 km 0,152.00 až 0,179.67:
C95: Stoka "B" PVC DN250 Š2 až Š7 km 0,000 až 0,152.00: | E95: 0 | M95: Stoka "B" PVC DN250 Š2 až Š7 km 0,000 až 0,152.00:
C96: Prostor pro napojení Š7:1,50*3,00*1,67 | E96: 7.515 | M96: Prostor pro napojení Š7:1,50*3,00*1,67
C97: 5,55*1,20*(1,67+2,81)/2 | E97: 14.9184 | M97: 5,55*1,20*(1,67+2,81)/2
C98: (7,66-5,55)*1,20*(2,81+2,54)/2 | E98: 6.7731 | M98: (7,66-5,55)*1,20*(2,81+2,54)/2
C99: (11,59-7,66)*1,00*(2,54+1,85)/2 | E99: 8.6264 | M99: (11,59-7,66)*1,00*(2,54+1,85)/2
C100: (24,16-11,59)*1,00*(1,85+1,65)/2 | E100: 21.9975 | M100: (24,16-11,59)*1,00*(1,85+1,65)/2
C101: (104,46-24,16)*1,00*(1,65+2,00)/2 | E101: 146.5475 | M101: (104,46-24,16)*1,00*(1,65+2,00)/2
C102: (109,91-104,46)*1,20*(1,66+3,22)/2 | E102: 15.9576 | M102: (109,91-104,46)*1,20*(1,66+3,22)/2
C103: (112,81-109,91)*1,20*(3,22+3,17)/2 | E103: 11.1186 | M103: (112,81-109,91)*1,20*(3,22+3,17)/2
C104: (123,09-112,81)*1,00*(2,25+1,60)/2 | E104: 19.789 | M104: (123,09-112,81)*1,00*(2,25+1,60)/2
C105: (141,35-123,09)*1,00*(1,60+2,37)/2 | E105: 36.2461 | M105: (141,35-123,09)*1,00*(1,60+2,37)/2
C106: (152,00-141,35)*1,00*(2,37+1,75)/2 | E106: 21.939 | M106: (152,00-141,35)*1,00*(2,37+1,75)/2
C107: Startovací jáma:5,00*2,00*2,20 | E107: 22 | M107: Startovací jáma:5,00*2,00*2,20
C108: Cílová jáma:2,00*2,00*2,20 | E108: 8.8 | M108: Cílová jáma:2,00*2,00*2,20
C109: (185,79-179,67)*1,00*(2,14+2,15)/2 | E109: 13.1274 | M109: (185,79-179,67)*1,00*(2,14+2,15)/2
C110: Prohloubení pro RŠ:1,60*1,60*0,20*5 | E110: 2.56 | M110: Prohloubení pro RŠ:1,60*1,60*0,20*5
C111: Rozšíření pro RŠ:1,60*(1,60-1,20)*(2,65+3,17) | E111: 3.7248 | M111: Rozšíření pro RŠ:1,60*(1,60-1,20)*(2,65+3,17)
C112: 1,60*(1,60-1,00)*(1,85+2,15) | E112: 3.84 | M112: 1,60*(1,60-1,00)*(1,85+2,15)
C113: Odpočet objemu ornice:-31,6800 | E113: -31.68 | M113: Odpočet objemu ornice:-31,6800
C114: Odpočet objemu komunikací a štěrkových ploch:-8,7000 | E114: -8.7 | M114: Odpočet objemu komunikací a štěrkových ploch:-8,7000
C115: Konec provozního součtu | E115: 325.1004 | M115: Konec provozního součtu
C116: V hornině tř. 4 - 45%:325,1004*0,45 | E116: 146.2952 | M116: V hornině tř. 4 - 45%:325,1004*0,45
A117: 13 | B117: 132301219R00 | C117: Přípl.za lepivost,hloubení rýh 200cm,hor.4,STROJNĚ | D117: m3 | E117: 73.1476 | G117: =E117*F117 -> 0 | H117: 0 | I117: =E117*H117 -> 0 | J117: 0 | K117: =E117*J117 -> 0 | O117: 2 | AA117: 1 | AB117: 1 | AC117: 1 | AZ117: 1 | BA117: =IF(AZ117=1,G117,0) -> 0 | BB117: =IF(AZ117=2,G117,0) -> 0 | BC117: =IF(AZ117=3,G117,0) -> 0 | BD117: =IF(AZ117=4,G117,0) -> 0 | BE117: =IF(AZ117=5,G117,0) -> 0 | CA117: 1 | CB117: 1
C118: Začátek provozního součtu | E118: 0 | M118: Začátek provozního součtu
C119: Stoka "A" PVC DN250 Š1 až Š2 km 0,179.67 až km 0,184.79: | E119: 0 | M119: Stoka "A" PVC DN250 Š1 až Š2 km 0,179.67 až km 0,184.79:
C120: Udržovací práce - Stoka PVC DN250 nasunutá do ocelové chráničky mezi Š2 a Š3 km 0,152.00 až 0,179.67: | E120: 0 | M120: Udržovací práce - Stoka PVC DN250 nasunutá do ocelové chráničky mezi Š2 a Š3 km 0,152.00 až 0,179.67:
C121: Stoka "B" PVC DN250 Š2 až Š7 km 0,000 až 0,152.00: | E121: 0 | M121: Stoka "B" PVC DN250 Š2 až Š7 km 0,000 až 0,152.00:
C122: Prostor pro napojení Š7:1,50*3,00*1,67 | E122: 7.515 | M122: Prostor pro napojení Š7:1,50*3,00*1,67
C123: 5,55*1,20*(1,67+2,81)/2 | E123: 14.9184 | M123: 5,55*1,20*(1,67+2,81)/2
C124: (7,66-5,55)*1,20*(2,81+2,54)/2 | E124: 6.7731 | M124: (7,66-5,55)*1,20*(2,81+2,54)/2
C125: (11,59-7,66)*1,00*(2,54+1,85)/2 | E125: 8.6264 | M125: (11,59-7,66)*1,00*(2,54+1,85)/2
C126: (24,16-11,59)*1,00*(1,85+1,65)/2 | E126: 21.9975 | M126: (24,16-11,59)*1,00*(1,85+1,65)/2
C127: (104,46-24,16)*1,00*(1,65+2,00)/2 | E127: 146.5475 | M127: (104,46-24,16)*1,00*(1,65+2,00)/2
C128: (109,91-104,46)*1,20*(1,66+3,22)/2 | E128: 15.9576 | M128: (109,91-104,46)*1,20*(1,66+3,22)/2
C129: (112,81-109,91)*1,20*(3,22+3,17)/2 | E129: 11.1186 | M129: (112,81-109,91)*1,20*(3,22+3,17)/2
C130: (123,09-112,81)*1,00*(2,25+1,60)/2 | E130: 19.789 | M130: (123,09-112,81)*1,00*(2,25+1,60)/2
C131: (141,35-123,09)*1,00*(1,60+2,37)/2 | E131: 36.2461 | M131: (141,35-123,09)*1,00*(1,60+2,37)/2
C132: (152,00-141,35)*1,00*(2,37+1,75)/2 | E132: 21.939 | M132: (152,00-141,35)*1,00*(2,37+1,75)/2
C133: Startovací jáma:5,00*2,00*2,20 | E133: 22 | M133: Startovací jáma:5,00*2,00*2,20
C134: Cílová jáma:2,00*2,00*2,20 | E134: 8.8 | M134: Cílová jáma:2,00*2,00*2,20
C135: (185,79-179,67)*1,00*(2,14+2,15)/2 | E135: 13.1274 | M135: (185,79-179,67)*1,00*(2,14+2,15)/2
C136: Prohloubení pro RŠ:1,60*1,60*0,20*5 | E136: 2.56 | M136: Prohloubení pro RŠ:1,60*1,60*0,20*5
C137: Rozšíření pro RŠ:1,60*(1,60-1,20)*(2,65+3,17) | E137: 3.7248 | M137: Rozšíření pro RŠ:1,60*(1,60-1,20)*(2,65+3,17)
C138: 1,60*(1,60-1,00)*(1,85+2,15) | E138: 3.84 | M138: 1,60*(1,60-1,00)*(1,85+2,15)
C139: Odpočet objemu ornice:-31,6800 | E139: -31.68 | M139: Odpočet objemu ornice:-31,6800
C140: Odpočet objemu komunikací a štěrkových ploch:-8,7000 | E140: -8.7 | M140: Odpočet objemu komunikací a štěrkových ploch:-8,7000
C141: Konec provozního součtu | E141: 325.1004 | M141: Konec provozního součtu
C142: V hornině tř. 4 - 45%:325,1004*0,45*0,5 | E142: 73.1476 | M142: V hornině tř. 4 - 45%:325,1004*0,45*0,5
A143: 14 | B143: 132401211R00 | C143: Hloubení rýh šířky do 200 cm v hor.5, STROJNĚ | D143: m3 | E143: 32.51 | G143: =E143*F143 -> 0 | H143: 0 | I143: =E143*H143 -> 0 | J143: 0 | K143: =E143*J143 -> 0 | O143: 2 | AA143: 1 | AB143: 1 | AC143: 1 | AZ143: 1 | BA143: =IF(AZ143=1,G143,0) -> 0 | BB143: =IF(AZ143=2,G143,0) -> 0 | BC143: =IF(AZ143=3,G143,0) -> 0 | BD143: =IF(AZ143=4,G143,0) -> 0 | BE143: =IF(AZ143=5,G143,0) -> 0 | CA143: 1 | CB143: 1
C144: Položka obsahuje hloubení jámy kolovým rypadlem s rozrývacím zubem, naložení výkopku na dopravní prostředek pro svislé, nebo vodorovné přemístění, popř. přemístění výkopku do 3 m (po povrchu území), případné zajištění rypadel polštáři, udržování pracoviště a ochranu výkopiště proti stékání srážkové vody z okolního terénu i s jejím odvodněním, nebo odvedením, přesekání a odstranění kořenů ve výkopišti, odstranění napadávek, urovnání dna výkopu. Položka se používá bez ohledu na těžené množství. | L144: Položka obsahuje hloubení jámy kolovým rypadlem s rozrývacím zubem, naložení výkopku na dopravní prostředek pro svislé, nebo vodorovné přemístění, popř. přemístění výkopku do 3 m (po povrchu území), případné zajištění rypadel polštáři, udržování pracoviště a ochranu výkopiště proti stékání srážkové vody z okolního terénu i s jejím odvodněním, nebo odvedením, přesekání a odstranění kořenů ve výkopišti, odstranění napadávek, urovnání dna výkopu. Položka se používá bez ohledu na těžené množství. | O144: 3
C145: Začátek provozního součtu | E145: 0 | M145: Začátek provozního součtu
C146: Stoka "A" PVC DN250 Š1 až Š2 km 0,179.67 až km 0,184.79: | E146: 0 | M146: Stoka "A" PVC DN250 Š1 až Š2 km 0,179.67 až km 0,184.79:
C147: Udržovací práce - Stoka PVC DN250 nasunutá do ocelové chráničky mezi Š2 a Š3 km 0,152.00 až 0,179.67: | E147: 0 | M147: Udržovací práce - Stoka PVC DN250 nasunutá do ocelové chráničky mezi Š2 a Š3 km 0,152.00 až 0,179.67:
C148: Stoka "B" PVC DN250 Š2 až Š7 km 0,000 až 0,152.00: | E148: 0 | M148: Stoka "B" PVC DN250 Š2 až Š7 km 0,000 až 0,152.00:
C149: Prostor pro napojení Š7:1,50*3,00*1,67 | E149: 7.515 | M149: Prostor pro napojení Š7:1,50*3,00*1,67
C150: 5,55*1,20*(1,67+2,81)/2 | E150: 14.9184 | M150: 5,55*1,20*(1,67+2,81)/2
C151: (7,66-5,55)*1,20*(2,81+2,54)/2 | E151: 6.7731 | M151: (7,66-5,55)*1,20*(2,81+2,54)/2
C152: (11,59-7,66)*1,00*(2,54+1,85)/2 | E152: 8.6264 | M152: (11,59-7,66)*1,00*(2,54+1,85)/2
C153: (24,16-11,59)*1,00*(1,85+1,65)/2 | E153: 21.9975 | M153: (24,16-11,59)*1,00*(1,85+1,65)/2
C154: (104,46-24,16)*1,00*(1,65+2,00)/2 | E154: 146.5475 | M154: (104,46-24,16)*1,00*(1,65+2,00)/2
C155: (109,91-104,46)*1,20*(1,66+3,22)/2 | E155: 15.9576 | M155: (109,91-104,46)*1,20*(1,66+3,22)/2
C156: (112,81-109,91)*1,20*(3,22+3,17)/2 | E156: 11.1186 | M156: (112,81-109,91)*1,20*(3,22+3,17)/2
C157: (123,09-112,81)*1,00*(2,25+1,60)/2 | E157: 19.789 | M157: (123,09-112,81)*1,00*(2,25+1,60)/2
C158: (141,35-123,09)*1,00*(1,60+2,37)/2 | E158: 36.2461 | M158: (141,35-123,09)*1,00*(1,60+2,37)/2
C159: (152,00-141,35)*1,00*(2,37+1,75)/2 | E159: 21.939 | M159: (152,00-141,35)*1,00*(2,37+1,75)/2
C160: Startovací jáma:5,00*2,00*2,20 | E160: 22 | M160: Startovací jáma:5,00*2,00*2,20
C161: Cílová jáma:2,00*2,00*2,20 | E161: 8.8 | M161: Cílová jáma:2,00*2,00*2,20
C162: (185,79-179,67)*1,00*(2,14+2,15)/2 | E162: 13.1274 | M162: (185,79-179,67)*1,00*(2,14+2,15)/2
C163: Prohloubení pro RŠ:1,60*1,60*0,20*5 | E163: 2.56 | M163: Prohloubení pro RŠ:1,60*1,60*0,20*5
C164: Rozšíření pro RŠ:1,60*(1,60-1,20)*(2,65+3,17) | E164: 3.7248 | M164: Rozšíření pro RŠ:1,60*(1,60-1,20)*(2,65+3,17)
C165: 1,60*(1,60-1,00)*(1,85+2,15) | E165: 3.84 | M165: 1,60*(1,60-1,00)*(1,85+2,15)
C166: Odpočet objemu ornice:-31,6800 | E166: -31.68 | M166: Odpočet objemu ornice:-31,6800
C167: Odpočet objemu komunikací a štěrkových ploch:-8,7000 | E167: -8.7 | M167: Odpočet objemu komunikací a štěrkových ploch:-8,7000
C168: Konec provozního součtu | E168: 325.1004 | M168: Konec provozního součtu
C169: V hornině tř. 5 - 10%:325,1004*0,1 | E169: 32.51 | M169: V hornině tř. 5 - 10%:325,1004*0,1
A170: 15 | B170: 141741118R00 | C170: Protlak z ocel. trub beraněný, v hor.1-4, D 377 mm | D170: m | E170: 26.43 | G170: =E170*F170 -> 0 | H170: 0.0005 | I170: =E170*H170 -> 0.013215 | J170: 0 | K170: =E170*J170 -> 0 | O170: 2 | AA170: 1 | AB170: 1 | AC170: 1 | AZ170: 1 | BA170: =IF(AZ170=1,G170,0) -> 0 | BB170: =IF(AZ170=2,G170,0) -> 0 | BC170: =IF(AZ170=3,G170,0) -> 0 | BD170: =IF(AZ170=4,G170,0) -> 0 | BE170: =IF(AZ170=5,G170,0) -> 0 | CA170: 1 | CB170: 1
C171: Dodávka trub se oceňuje ve specifikaci. Ztratné se doporučuje ve výši 10 %. | L171: Dodávka trub se oceňuje ve specifikaci. Ztratné se doporučuje ve výši 10 %. | O171: 3
C172: Položka obsahuje náklady na spojování protlačovaných trub, úpravu čela potrubí pro protlačení, odstranění horniny z protlačovaných trub stlačeným vzduchem, vodorovné přemístění výkopku z protlačovaného potrubí a svislé přemístění výkopku z montážní jámy na přilehlý terén. | L172: Položka obsahuje náklady na spojování protlačovaných trub, úpravu čela potrubí pro protlačení, odstranění horniny z protlačovaných trub stlačeným vzduchem, vodorovné přemístění výkopku z protlačovaného potrubí a svislé přemístění výkopku z montážní jámy na přilehlý terén. | O172: 3
C173: Položka neobsahuje zemní práce pro startovací a vytahovací jámy, případné roubení, čerpání vody, montáž vedení do chráničky a případné zřízení opěrné konstrukce pro zatlačovací zařízení, úpravu dna startovací jámy kamenivem ani silničními panely. | L173: Položka neobsahuje zemní práce pro startovací a vytahovací jámy, případné roubení, čerpání vody, montáž vedení do chráničky a případné zřízení opěrné konstrukce pro zatlačovací zařízení, úpravu dna startovací jámy kamenivem ani silničními panely. | O173: 3
C174: Chránička DN350 od km 0,152.62 do km 0,179.05:179,05-152,62 | E174: 26.43 | M174: Chránička DN350 od km 0,152.62 do km 0,179.05:179,05-152,62
A175: 16 | B175: 151101101R00 | C175: Pažení a rozepření stěn rýh - příložné - hl.do 2 m | D175: m2 | E175: 529.313 | G175: =E175*F175 -> 0 | H175: 0.00099 | I175: =E175*H175 -> 0.52401987 | J175: 0 | K175: =E175*J175 -> 0 | O175: 2 | AA175: 1 | AB175: 1 | AC175: 1 | AZ175: 1 | BA175: =IF(AZ175=1,G175,0) -> 0 | BB175: =IF(AZ175=2,G175,0) -> 0 | BC175: =IF(AZ175=3,G175,0) -> 0 | BD175: =IF(AZ175=4,G175,0) -> 0 | BE175: =IF(AZ175=5,G175,0) -> 0 | CA175: 1 | CB175: 1
C176: Stoka "A" PVC DN250 Š1 až Š2 km 0,179.67 až km 0,184.79: | E176: 0 | M176: Stoka "A" PVC DN250 Š1 až Š2 km 0,179.67 až km 0,184.79:
C177: Udržovací práce - Stoka PVC DN250 nasunutá do ocelové chráničky mezi Š2 a Š3 km 0,152.00 až 0,179.67: | E177: 0 | M177: Udržovací práce - Stoka PVC DN250 nasunutá do ocelové chráničky mezi Š2 a Š3 km 0,152.00 až 0,179.67:
C178: Stoka "B" PVC DN250 Š2 až Š7 km 0,000 až 0,152.00: | E178: 0 | M178: Stoka "B" PVC DN250 Š2 až Š7 km 0,000 až 0,152.00:
C179: Prostor pro napojení Š7:3,00*1,67*2 | E179: 10.02 | M179: Prostor pro napojení Š7:3,00*1,67*2
C180: (24,16-11,59)*(1,85+1,65)/2*2 | E180: 43.995 | M180: (24,16-11,59)*(1,85+1,65)/2*2
C181: (104,46-24,16)*(1,65+2,00)/2*2 | E181: 293.095 | M181: (104,46-24,16)*(1,65+2,00)/2*2
C182: (123,09-112,81)*(2,25+1,60)/2*2 | E182: 39.578 | M182: (123,09-112,81)*(2,25+1,60)/2*2
C183: (141,35-123,09)*(1,60+2,37)/2*2 | E183: 72.4922 | M183: (141,35-123,09)*(1,60+2,37)/2*2
C184: (152,00-141,35)*(2,37+1,75)/2*2 | E184: 43.878 | M184: (152,00-141,35)*(2,37+1,75)/2*2
C185: (185,79-179,67)*(2,14+2,15)/2*2 | E185: 26.2548 | M185: (185,79-179,67)*(2,14+2,15)/2*2
A186: 17 | B186: 151101102R00 | C186: Pažení a rozepření stěn rýh - příložné - hl.do 4 m | D186: m2 | E186: 104.4682 | G186: =E186*F186 -> 0 | H186: 0.00086 | I186: =E186*H186 -> 0.089842652 | J186: 0 | K186: =E186*J186 -> 0 | O186: 2 | AA186: 1 | AB186: 1 | AC186: 1 | AZ186: 1 | BA186: =IF(AZ186=1,G186,0) -> 0 | BB186: =IF(AZ186=2,G186,0) -> 0 | BC186: =IF(AZ186=3,G186,0) -> 0 | BD186: =IF(AZ186=4,G186,0) -> 0 | BE186: =IF(AZ186=5,G186,0) -> 0 | CA186: 1 | CB186: 1
C187: Stoka "A" PVC DN250 Š1 až Š2 km 0,179.67 až km 0,184.79: | E187: 0 | M187: Stoka "A" PVC DN250 Š1 až Š2 km 0,179.67 až km 0,184.79:
C188: Udržovací práce - Stoka PVC DN250 nasunutá do ocelové chráničky mezi Š2 a Š3 km 0,152.00 až 0,179.67: | E188: 0 | M188: Udržovací práce - Stoka PVC DN250 nasunutá do ocelové chráničky mezi Š2 a Š3 km 0,152.00 až 0,179.67:
C189: Stoka "B" PVC DN250 Š2 až Š7 km 0,000 až 0,152.00: | E189: 0 | M189: Stoka "B" PVC DN250 Š2 až Š7 km 0,000 až 0,152.00:
C190: (7,66-5,55)*(2,81+2,54)/2*2 | E190: 11.2885 | M190: (7,66-5,55)*(2,81+2,54)/2*2
C191: (11,59-7,66)*(2,54+1,85)/2*2 | E191: 17.2527 | M191: (11,59-7,66)*(2,54+1,85)/2*2
C192: (109,91-104,46)*(1,66+3,22)/2*2 | E192: 26.596 | M192: (109,91-104,46)*(1,66+3,22)/2*2
C193: (112,81-109,91)*(3,22+3,17)/2*2 | E193: 18.531 | M193: (112,81-109,91)*(3,22+3,17)/2*2
C194: Startovací jáma:5,00*2,20*2 | E194: 22 | M194: Startovací jáma:5,00*2,20*2
C195: Cílová jáma:2,00*2,20*2 | E195: 8.8 | M195: Cílová jáma:2,00*2,20*2
A196: 18 | B196: 151101111R00 | C196: Odstranění pažení stěn rýh - příložné - hl. do 2 m | D196: m2 | E196: 529.313 | G196: =E196*F196 -> 0 | H196: 0 | I196: =E196*H196 -> 0 | J196: 0 | K196: =E196*J196 -> 0 | O196: 2 | AA196: 1 | AB196: 1 | AC196: 1 | AZ196: 1 | BA196: =IF(AZ196=1,G196,0) -> 0 | BB196: =IF(AZ196=2,G196,0) -> 0 | BC196: =IF(AZ196=3,G196,0) -> 0 | BD196: =IF(AZ196=4,G196,0) -> 0 | BE196: =IF(AZ196=5,G196,0) -> 0 | CA196: 1 | CB196: 1
C197: Stoka "A" PVC DN250 Š1 až Š2 km 0,179.67 až km 0,184.79: | E197: 0 | M197: Stoka "A" PVC DN250 Š1 až Š2 km 0,179.67 až km 0,184.79:
C198: Udržovací práce - Stoka PVC DN250 nasunutá do ocelové chráničky mezi Š2 a Š3 km 0,152.00 až 0,179.67: | E198: 0 | M198: Udržovací práce - Stoka PVC DN250 nasunutá do ocelové chráničky mezi Š2 a Š3 km 0,152.00 až 0,179.67:
C199: Stoka "B" PVC DN250 Š2 až Š7 km 0,000 až 0,152.00: | E199: 0 | M199: Stoka "B" PVC DN250 Š2 až Š7 km 0,000 až 0,152.00:
C200: Prostor pro napojení Š7:3,00*1,67*2 | E200: 10.02 | M200: Prostor pro napojení Š7:3,00*1,67*2
C201: (24,16-11,59)*(1,85+1,65)/2*2 | E201: 43.995 | M201: (24,16-11,59)*(1,85+1,65)/2*2
C202: (104,46-24,16)*(1,65+2,00)/2*2 | E202: 293.095 | M202: (104,46-24,16)*(1,65+2,00)/2*2
... 241 more rows

Sheet 02 334102 KL
A1: POLOŽKOVÝ ROZPOČET
A2: Rozpočet | C2: 3341/02 | D2: Podružný kanalizační řád B-1 | F2: JKSO | G2: 827.21.A2
A4: Objekt | F4: SKP
A5: 02 | C5: Podružný kanalizační řád B-1 | F5: Měrná jednotka | G5: m
A6: Stavba | F6: Počet jednotek | G6: 47.26
A7: 3341 | C7: Přepojení ČSOV Hančova bouda Benecko | F7: Náklady na m.j. | G7: =IF(G6=0,,ROUND((F30+F32)/G6,1)) -> 0
A8: Projektant | C8: Vodohospodářské inženýrské služby a.s. | F8: Typ rozpočtu
A9: Zpracovatel projektu
A10: Objednatel | C10: Vodohospodářské sdružení Turnov
A11: Dodavatel | C11: . | F11: Zakázkové číslo
A12: Rozpočtoval | F12: Počet listů
A13: ROZPOČTOVÉ NÁKLADY
A14: Základní rozpočtové náklady
B15: HSV celkem | C15: ='02 334102 Rek'!E12 -> 0
A16: Z | B16: PSV celkem | C16: ='02 334102 Rek'!F12 -> 0
A17: R | B17: M práce celkem | C17: ='02 334102 Rek'!H12 -> 0
A18: N | B18: M dodávky celkem | C18: ='02 334102 Rek'!G12 -> 0
A19: ZRN celkem | C19: =SUM(C15:C18) -> 0
A21: HZS | C21: ='02 334102 Rek'!I12 -> 0
A22: ZRN+HZS | C22: =C19+C21 -> 0
A23: ZRN+ost.náklady+HZS | C23: =C22+G23 -> 0
A24: Vypracoval | D24: Za zhotovitele | F24: Za objednatele
A25: Jméno : | D25: Jméno : | F25: Jméno :
A26: Datum : | D26: Datum : | F26: Datum :
A28: Podpis : | D28: Podpis: | F28: Podpis:
A30: Základ pro DPH | C30: 21 | D30: % | F30: =C23-F32 -> 0
A31: DPH | C31: =C30 -> 21 | D31: % | F31: =ROUND(PRODUCT(F30,C31/100),0) -> 0
A32: Základ pro DPH | C32: 0 | D32: % | F32: 0
A33: DPH | C33: =C32 -> 0 | D33: % | F33: =ROUND(PRODUCT(F32,C33/100),0) -> 0
A34: CENA ZA OBJEKT CELKEM | F34: =ROUND(SUM(F30:F33),0) -> 0
A36: Poznámka :

Sheet 02 334102 Rek
A1: Stavba : | C1: 3341 Přepojení ČSOV Hančova bouda Benecko | G1: Rozpočet : | H1: 3341/02
A2: Objekt : | C2: 02 Podružný kanalizační řád B-1 | G2: Podružný kanalizační řád B-1
A4: REKAPITULACE STAVEBNÍCH DÍLŮ
B6: Stavební díl | E6: HSV | F6: PSV | G6: Dodávka | H6: Montáž | I6: HZS
A7: ='02 334102 Pol'!B7 -> 1 | B7: ='02 334102 Pol'!C7 -> Zemní práce | E7: ='02 334102 Pol'!BA113 -> 0 | F7: ='02 334102 Pol'!BB113 -> 0 | G7: ='02 334102 Pol'!BC113 -> 0 | H7: ='02 334102 Pol'!BD113 -> 0 | I7: ='02 334102 Pol'!BE113 -> 0
A8: ='02 334102 Pol'!B114 -> 2 | B8: ='02 334102 Pol'!C114 -> Základy a zvláštní zakládání | E8: ='02 334102 Pol'!BA122 -> 0 | F8: ='02 334102 Pol'!BB122 -> 0 | G8: ='02 334102 Pol'!BC122 -> 0 | H8: ='02 334102 Pol'!BD122 -> 0 | I8: ='02 334102 Pol'!BE122 -> 0
A9: ='02 334102 Pol'!B123 -> 45 | B9: ='02 334102 Pol'!C123 -> Podkladní a vedlejší konstrukce | E9: ='02 334102 Pol'!BA126 -> 0 | F9: ='02 334102 Pol'!BB126 -> 0 | G9: ='02 334102 Pol'!BC126 -> 0 | H9: ='02 334102 Pol'!BD126 -> 0 | I9: ='02 334102 Pol'!BE126 -> 0
A10: ='02 334102 Pol'!B127 -> 8 | B10: ='02 334102 Pol'!C127 -> Trubní vedení | E10: ='02 334102 Pol'!BA155 -> 0 | F10: ='02 334102 Pol'!BB155 -> 0 | G10: ='02 334102 Pol'!BC155 -> 0 | H10: ='02 334102 Pol'!BD155 -> 0 | I10: ='02 334102 Pol'!BE155 -> 0
A11: ='02 334102 Pol'!B156 -> 99 | B11: ='02 334102 Pol'!C156 -> Staveništní přesun hmot | E11: ='02 334102 Pol'!BA158 -> 0 | F11: ='02 334102 Pol'!BB158 -> 0 | G11: ='02 334102 Pol'!BC158 -> 0 | H11: ='02 334102 Pol'!BD158 -> 0 | I11: ='02 334102 Pol'!BE158 -> 0
B12: CELKEM OBJEKT | E12: =SUM(E7:E11) -> 0 | F12: =SUM(F7:F11) -> 0 | G12: =SUM(G7:G11) -> 0 | H12: =SUM(H7:H11) -> 0 | I12: =SUM(I7:I11) -> 0

Sheet 02 334102 Pol
A1: Položkový rozpočet
A3: Stavba : | C3: 3341 Přepojení ČSOV Hančova bouda Benecko | E3: Rozpočet: | F3: ='02 334102 Rek'!H1 -> 3341/02
A4: Objekt : | C4: 02 Podružný kanalizační řád B-1 | E4: ='02 334102 Rek'!G2 -> Podružný kanalizační řád B-1
A6: P.č. | B6: Číslo položky | C6: Název položky | D6: MJ | E6: množství | F6: cena / MJ | G6: celkem (Kč) | H6: Jednotková hmotnost | I6: Celková hmotnost | J6: Jednotková dem.hmot. | K6: Celková dem.hmot.
A7: Díl: | B7: 1 | C7: Zemní práce | O7: 1
A8: 1 | B8: 115101201R00 | C8: Čerpání vody na výšku do 10 m, přítok do 500 l/min | D8: h | E8: 25 | G8: =E8*F8 -> 0 | H8: 0 | I8: =E8*H8 -> 0 | J8: 0 | K8: =E8*J8 -> 0 | O8: 2 | AA8: 1 | AB8: 1 | AC8: 1 | AZ8: 1 | BA8: =IF(AZ8=1,G8,0) -> 0 | BB8: =IF(AZ8=2,G8,0) -> 0 | BC8: =IF(AZ8=3,G8,0) -> 0 | BD8: =IF(AZ8=4,G8,0) -> 0 | BE8: =IF(AZ8=5,G8,0) -> 0 | CA8: 1 | CB8: 1
A9: 2 | B9: 119001401R00 | C9: Dočasné zajištění ocelového potrubí do DN 200 mm | D9: m | E9: 1 | G9: =E9*F9 -> 0 | H9: 0.00869 | I9: =E9*H9 -> 0.00869 | J9: 0 | K9: =E9*J9 -> 0 | O9: 2 | AA9: 1 | AB9: 1 | AC9: 1 | AZ9: 1 | BA9: =IF(AZ9=1,G9,0) -> 0 | BB9: =IF(AZ9=2,G9,0) -> 0 | BC9: =IF(AZ9=3,G9,0) -> 0 | BD9: =IF(AZ9=4,G9,0) -> 0 | BE9: =IF(AZ9=5,G9,0) -> 0 | CA9: 1 | CB9: 1
A10: 3 | B10: 121100002RAA | C10: Sejmutí ornice a uložení na deponii zpětný přesun, rozprostření v tl. 20 cm, osetí | D10: m3 | E10: 28.356 | G10: =E10*F10 -> 0 | H10: 0 | I10: =E10*H10 -> 0 | J10: 0 | K10: =E10*J10 -> 0 | O10: 2 | AA10: 1 | AB10: 1 | AC10: 1 | AZ10: 1 | BA10: =IF(AZ10=1,G10,0) -> 0 | BB10: =IF(AZ10=2,G10,0) -> 0 | BC10: =IF(AZ10=3,G10,0) -> 0 | BD10: =IF(AZ10=4,G10,0) -> 0 | BE10: =IF(AZ10=5,G10,0) -> 0 | CA10: 1 | CB10: 1
C11: Stoka B-1 PVC DN150:47,26*3,00*0,20 | E11: 28.356 | M11: Stoka B-1 PVC DN150:47,26*3,00*0,20
A12: 4 | B12: 130001101RRX | C12: Příplatek za ztížené hloubení v blízkosti vedení | D12: m3 | E12: 6.2472 | G12: =E12*F12 -> 0 | H12: 0 | I12: =E12*H12 -> 0 | J12: 0 | K12: =E12*J12 -> 0 | O12: 2 | AA12: 1 | AB12: 1 | AC12: 1 | AZ12: 1 | BA12: =IF(AZ12=1,G12,0) -> 0 | BB12: =IF(AZ12=2,G12,0) -> 0 | BC12: =IF(AZ12=3,G12,0) -> 0 | BD12: =IF(AZ12=4,G12,0) -> 0 | BE12: =IF(AZ12=5,G12,0) -> 0 | CA12: 1 | CB12: 1
C13: Včetně případných nutných dokopávem a ručního výkopu podél sousedících inženýrských sítí | L13: Včetně případných nutných dokopávem a ručního výkopu podél sousedících inženýrských sítí | O13: 3
C14: Začátek provozního součtu | E14: 0 | M14: Začátek provozního součtu
C15: Stoka B-1 PVC DN150:5,62*1,00*(2,25+2,60)/2 | E15: 13.6285 | M15: Stoka B-1 PVC DN150:5,62*1,00*(2,25+2,60)/2
C16: (16,41-5,62)*1,00*(2,60+2,51)/2 | E16: 27.5684 | M16: (16,41-5,62)*1,00*(2,60+2,51)/2
C17: (21,48-16,41)*1,00*(2,51+2,65)/2 | E17: 13.0806 | M17: (21,48-16,41)*1,00*(2,51+2,65)/2
C18: (47,26-21,48)*1,00*(2,65+1,95)/2 | E18: 59.294 | M18: (47,26-21,48)*1,00*(2,65+1,95)/2
C19: Odpočet objemu ornice:-47,26*1,00*0,20 | E19: -9.452 | M19: Odpočet objemu ornice:-47,26*1,00*0,20
C20: Konec provozního součtu | E20: 104.1195 | M20: Konec provozního součtu
C21: V hornině tř. 3 - 5 - 6%:104,1195*0,06 | E21: 6.2472 | M21: V hornině tř. 3 - 5 - 6%:104,1195*0,06
A22: 5 | B22: 132201212R00 | C22: Hloubení rýh š.do 200 cm hor.3 do 1000m3,STROJNĚ | D22: m3 | E22: 46.8538 | G22: =E22*F22 -> 0 | H22: 0 | I22: =E22*H22 -> 0 | J22: 0 | K22: =E22*J22 -> 0 | O22: 2 | AA22: 1 | AB22: 1 | AC22: 1 | AZ22: 1 | BA22: =IF(AZ22=1,G22,0) -> 0 | BB22: =IF(AZ22=2,G22,0) -> 0 | BC22: =IF(AZ22=3,G22,0) -> 0 | BD22: =IF(AZ22=4,G22,0) -> 0 | BE22: =IF(AZ22=5,G22,0) -> 0 | CA22: 1 | CB22: 1
C23: Položka obsahuje hloubení rýh traktorbagrem, naložení výkopku na dopravní prostředek pro svislé, nebo vodorovné přemístění, popř. přemístění výkopku do 3 m (po povrchu území), případné zajištění rypadel polštáři, udržování pracoviště a ochranu výkopiště proti stékání srážkové vody z okolního terénu i s jejím odvodněním, nebo odvedením, přesekání a odstranění kořenů ve výkopišti, odstranění napadávek, urovnání dna výkopu. | L23: Položka obsahuje hloubení rýh traktorbagrem, naložení výkopku na dopravní prostředek pro svislé, nebo vodorovné přemístění, popř. přemístění výkopku do 3 m (po povrchu území), případné zajištění rypadel polštáři, udržování pracoviště a ochranu výkopiště proti stékání srážkové vody z okolního terénu i s jejím odvodněním, nebo odvedením, přesekání a odstranění kořenů ve výkopišti, odstranění napadávek, urovnání dna výkopu. | O23: 3
C24: Začátek provozního součtu | E24: 0 | M24: Začátek provozního součtu
C25: Stoka B-1 PVC DN150:5,62*1,00*(2,25+2,60)/2 | E25: 13.6285 | M25: Stoka B-1 PVC DN150:5,62*1,00*(2,25+2,60)/2
C26: (16,41-5,62)*1,00*(2,60+2,51)/2 | E26: 27.5684 | M26: (16,41-5,62)*1,00*(2,60+2,51)/2
C27: (21,48-16,41)*1,00*(2,51+2,65)/2 | E27: 13.0806 | M27: (21,48-16,41)*1,00*(2,51+2,65)/2
C28: (47,26-21,48)*1,00*(2,65+1,95)/2 | E28: 59.294 | M28: (47,26-21,48)*1,00*(2,65+1,95)/2
C29: Odpočet objemu ornice:-47,26*1,00*0,20 | E29: -9.452 | M29: Odpočet objemu ornice:-47,26*1,00*0,20
C30: Konec provozního součtu | E30: 104.1195 | M30: Konec provozního součtu
C31: V hornině tř. 3 - 45%:104,1195*0,45 | E31: 46.8538 | M31: V hornině tř. 3 - 45%:104,1195*0,45
A32: 6 | B32: 132201219R00 | C32: Přípl.za lepivost,hloubení rýh 200cm,hor.3,STROJNĚ | D32: m3 | E32: 23.4269 | G32: =E32*F32 -> 0 | H32: 0 | I32: =E32*H32 -> 0 | J32: 0 | K32: =E32*J32 -> 0 | O32: 2 | AA32: 1 | AB32: 1 | AC32: 1 | AZ32: 1 | BA32: =IF(AZ32=1,G32,0) -> 0 | BB32: =IF(AZ32=2,G32,0) -> 0 | BC32: =IF(AZ32=3,G32,0) -> 0 | BD32: =IF(AZ32=4,G32,0) -> 0 | BE32: =IF(AZ32=5,G32,0) -> 0 | CA32: 1 | CB32: 1
C33: Začátek provozního součtu | E33: 0 | M33: Začátek provozního součtu
C34: Stoka B-1 PVC DN150:5,62*1,00*(2,25+2,60)/2 | E34: 13.6285 | M34: Stoka B-1 PVC DN150:5,62*1,00*(2,25+2,60)/2
C35: (16,41-5,62)*1,00*(2,60+2,51)/2 | E35: 27.5684 | M35: (16,41-5,62)*1,00*(2,60+2,51)/2
C36: (21,48-16,41)*1,00*(2,51+2,65)/2 | E36: 13.0806 | M36: (21,48-16,41)*1,00*(2,51+2,65)/2
C37: (47,26-21,48)*1,00*(2,65+1,95)/2 | E37: 59.294 | M37: (47,26-21,48)*1,00*(2,65+1,95)/2
C38: Odpočet objemu ornice:-47,26*1,00*0,20 | E38: -9.452 | M38: Odpočet objemu ornice:-47,26*1,00*0,20
C39: Konec provozního součtu | E39: 104.1195 | M39: Konec provozního součtu
C40: V hornině tř. 3 - 45%:104,1195*0,45*0,5 | E40: 23.4269 | M40: V hornině tř. 3 - 45%:104,1195*0,45*0,5
A41: 7 | B41: 132301212R00 | C41: Hloubení rýh š.do 200 cm hor.4 do 1000 m3, STROJNĚ | D41: m3 | E41: 46.8538 | G41: =E41*F41 -> 0 | H41: 0 | I41: =E41*H41 -> 0 | J41: 0 | K41: =E41*J41 -> 0 | O41: 2 | AA41: 1 | AB41: 1 | AC41: 1 | AZ41: 1 | BA41: =IF(AZ41=1,G41,0) -> 0 | BB41: =IF(AZ41=2,G41,0) -> 0 | BC41: =IF(AZ41=3,G41,0) -> 0 | BD41: =IF(AZ41=4,G41,0) -> 0 | BE41: =IF(AZ41=5,G41,0) -> 0 | CA41: 1 | CB41: 1
C42: Položka obsahuje hloubení rýh traktorbagrem, naložení výkopku na dopravní prostředek pro svislé, nebo vodorovné přemístění, popř. přemístění výkopku do 3 m (po povrchu území), případné zajištění rypadel polštáři, udržování pracoviště a ochranu výkopiště proti stékání srážkové vody z okolního terénu i s jejím odvodněním, nebo odvedením, přesekání a odstranění kořenů ve výkopišti, odstranění napadávek, urovnání dna výkopu. | L42: Položka obsahuje hloubení rýh traktorbagrem, naložení výkopku na dopravní prostředek pro svislé, nebo vodorovné přemístění, popř. přemístění výkopku do 3 m (po povrchu území), případné zajištění rypadel polštáři, udržování pracoviště a ochranu výkopiště proti stékání srážkové vody z okolního terénu i s jejím odvodněním, nebo odvedením, přesekání a odstranění kořenů ve výkopišti, odstranění napadávek, urovnání dna výkopu. | O42: 3
C43: Začátek provozního součtu | E43: 0 | M43: Začátek provozního součtu
C44: Stoka B-1 PVC DN150:5,62*1,00*(2,25+2,60)/2 | E44: 13.6285 | M44: Stoka B-1 PVC DN150:5,62*1,00*(2,25+2,60)/2
C45: (16,41-5,62)*1,00*(2,60+2,51)/2 | E45: 27.5684 | M45: (16,41-5,62)*1,00*(2,60+2,51)/2
C46: (21,48-16,41)*1,00*(2,51+2,65)/2 | E46: 13.0806 | M46: (21,48-16,41)*1,00*(2,51+2,65)/2
C47: (47,26-21,48)*1,00*(2,65+1,95)/2 | E47: 59.294 | M47: (47,26-21,48)*1,00*(2,65+1,95)/2
C48: Odpočet objemu ornice:-47,26*1,00*0,20 | E48: -9.452 | M48: Odpočet objemu ornice:-47,26*1,00*0,20
C49: Konec provozního součtu | E49: 104.1195 | M49: Konec provozního součtu
C50: V hornině tř. 4 - 45%:104,1195*0,45 | E50: 46.8538 | M50: V hornině tř. 4 - 45%:104,1195*0,45
A51: 8 | B51: 132301219R00 | C51: Přípl.za lepivost,hloubení rýh 200cm,hor.4,STROJNĚ | D51: m3 | E51: 23.4269 | G51: =E51*F51 -> 0 | H51: 0 | I51: =E51*H51 -> 0 | J51: 0 | K51: =E51*J51 -> 0 | O51: 2 | AA51: 1 | AB51: 1 | AC51: 1 | AZ51: 1 | BA51: =IF(AZ51=1,G51,0) -> 0 | BB51: =IF(AZ51=2,G51,0) -> 0 | BC51: =IF(AZ51=3,G51,0) -> 0 | BD51: =IF(AZ51=4,G51,0) -> 0 | BE51: =IF(AZ51=5,G51,0) -> 0 | CA51: 1 | CB51: 1
C52: Začátek provozního součtu | E52: 0 | M52: Začátek provozního součtu
C53: Stoka B-1 PVC DN150:5,62*1,00*(2,25+2,60)/2 | E53: 13.6285 | M53: Stoka B-1 PVC DN150:5,62*1,00*(2,25+2,60)/2
C54: (16,41-5,62)*1,00*(2,60+2,51)/2 | E54: 27.5684 | M54: (16,41-5,62)*1,00*(2,60+2,51)/2
C55: (21,48-16,41)*1,00*(2,51+2,65)/2 | E55: 13.0806 | M55: (21,48-16,41)*1,00*(2,51+2,65)/2
C56: (47,26-21,48)*1,00*(2,65+1,95)/2 | E56: 59.294 | M56: (47,26-21,48)*1,00*(2,65+1,95)/2
C57: Odpočet objemu ornice:-47,26*1,00*0,20 | E57: -9.452 | M57: Odpočet objemu ornice:-47,26*1,00*0,20
C58: Konec provozního součtu | E58: 104.1195 | M58: Konec provozního součtu
C59: V hornině tř. 4 - 45%:104,1195*0,45*0,5 | E59: 23.4269 | M59: V hornině tř. 4 - 45%:104,1195*0,45*0,5
A60: 9 | B60: 132401211R00 | C60: Hloubení rýh šířky do 200 cm v hor.5, STROJNĚ | D60: m3 | E60: 10.412 | G60: =E60*F60 -> 0 | H60: 0 | I60: =E60*H60 -> 0 | J60: 0 | K60: =E60*J60 -> 0 | O60: 2 | AA60: 1 | AB60: 1 | AC60: 1 | AZ60: 1 | BA60: =IF(AZ60=1,G60,0) -> 0 | BB60: =IF(AZ60=2,G60,0) -> 0 | BC60: =IF(AZ60=3,G60,0) -> 0 | BD60: =IF(AZ60=4,G60,0) -> 0 | BE60: =IF(AZ60=5,G60,0) -> 0 | CA60: 1 | CB60: 1
C61: Položka obsahuje hloubení jámy kolovým rypadlem s rozrývacím zubem, naložení výkopku na dopravní prostředek pro svislé, nebo vodorovné přemístění, popř. přemístění výkopku do 3 m (po povrchu území), případné zajištění rypadel polštáři, udržování pracoviště a ochranu výkopiště proti stékání srážkové vody z okolního terénu i s jejím odvodněním, nebo odvedením, přesekání a odstranění kořenů ve výkopišti, odstranění napadávek, urovnání dna výkopu. Položka se používá bez ohledu na těžené množství. | L61: Položka obsahuje hloubení jámy kolovým rypadlem s rozrývacím zubem, naložení výkopku na dopravní prostředek pro svislé, nebo vodorovné přemístění, popř. přemístění výkopku do 3 m (po povrchu území), případné zajištění rypadel polštáři, udržování pracoviště a ochranu výkopiště proti stékání srážkové vody z okolního terénu i s jejím odvodněním, nebo odvedením, přesekání a odstranění kořenů ve výkopišti, odstranění napadávek, urovnání dna výkopu. Položka se používá bez ohledu na těžené množství. | O61: 3
C62: Začátek provozního součtu | E62: 0 | M62: Začátek provozního součtu
C63: Stoka B-1 PVC DN150:5,62*1,00*(2,25+2,60)/2 | E63: 13.6285 | M63: Stoka B-1 PVC DN150:5,62*1,00*(2,25+2,60)/2
C64: (16,41-5,62)*1,00*(2,60+2,51)/2 | E64: 27.5684 | M64: (16,41-5,62)*1,00*(2,60+2,51)/2
C65: (21,48-16,41)*1,00*(2,51+2,65)/2 | E65: 13.0806 | M65: (21,48-16,41)*1,00*(2,51+2,65)/2
C66: (47,26-21,48)*1,00*(2,65+1,95)/2 | E66: 59.294 | M66: (47,26-21,48)*1,00*(2,65+1,95)/2
C67: Odpočet objemu ornice:-47,26*1,00*0,20 | E67: -9.452 | M67: Odpočet objemu ornice:-47,26*1,00*0,20
C68: Konec provozního součtu | E68: 104.1195 | M68: Konec provozního součtu
C69: V hornině tř. 5 - 10%:104,1195*0,1 | E69: 10.412 | M69: V hornině tř. 5 - 10%:104,1195*0,1
A70: 10 | B70: 151101102R00 | C70: Pažení a rozepření stěn rýh - příložné - hl.do 4 m | D70: m2 | E70: 227.1431 | G70: =E70*F70 -> 0 | H70: 0.00086 | I70: =E70*H70 -> 0.195343066 | J70: 0 | K70: =E70*J70 -> 0 | O70: 2 | AA70: 1 | AB70: 1 | AC70: 1 | AZ70: 1 | BA70: =IF(AZ70=1,G70,0) -> 0 | BB70: =IF(AZ70=2,G70,0) -> 0 | BC70: =IF(AZ70=3,G70,0) -> 0 | BD70: =IF(AZ70=4,G70,0) -> 0 | BE70: =IF(AZ70=5,G70,0) -> 0 | CA70: 1 | CB70: 1
C71: Stoka B-1 PVC DN150:5,62*(2,25+2,60)/2*2 | E71: 27.257 | M71: Stoka B-1 PVC DN150:5,62*(2,25+2,60)/2*2
C72: (16,41-5,62)*(2,60+2,51)/2*2 | E72: 55.1369 | M72: (16,41-5,62)*(2,60+2,51)/2*2
C73: (21,48-16,41)*(2,51+2,65)/2*2 | E73: 26.1612 | M73: (21,48-16,41)*(2,51+2,65)/2*2
C74: (47,26-21,48)*(2,65+1,95)/2*2 | E74: 118.588 | M74: (47,26-21,48)*(2,65+1,95)/2*2
A75: 11 | B75: 151101112R00 | C75: Odstranění pažení stěn rýh - příložné - hl. do 4 m | D75: m2 | E75: 227.1431 | G75: =E75*F75 -> 0 | H75: 0 | I75: =E75*H75 -> 0 | J75: 0 | K75: =E75*J75 -> 0 | O75: 2 | AA75: 1 | AB75: 1 | AC75: 1 | AZ75: 1 | BA75: =IF(AZ75=1,G75,0) -> 0 | BB75: =IF(AZ75=2,G75,0) -> 0 | BC75: =IF(AZ75=3,G75,0) -> 0 | BD75: =IF(AZ75=4,G75,0) -> 0 | BE75: =IF(AZ75=5,G75,0) -> 0 | CA75: 1 | CB75: 1
C76: Stoka B-1 PVC DN150:5,62*(2,25+2,60)/2*2 | E76: 27.257 | M76: Stoka B-1 PVC DN150:5,62*(2,25+2,60)/2*2
C77: (16,41-5,62)*(2,60+2,51)/2*2 | E77: 55.1369 | M77: (16,41-5,62)*(2,60+2,51)/2*2
C78: (21,48-16,41)*(2,51+2,65)/2*2 | E78: 26.1612 | M78: (21,48-16,41)*(2,51+2,65)/2*2
C79: (47,26-21,48)*(2,65+1,95)/2*2 | E79: 118.588 | M79: (47,26-21,48)*(2,65+1,95)/2*2
A80: 12 | B80: 162701105RSZ | C80: Vodorovné přemístění výkopku z hor.1-7 na skládku zhotovitele | D80: m3 | E80: 26.6854 | G80: =E80*F80 -> 0 | H80: 0 | I80: =E80*H80 -> 0 | J80: 0 | K80: =E80*J80 -> 0 | O80: 2 | AA80: 1 | AB80: 1 | AC80: 1 | AZ80: 1 | BA80: =IF(AZ80=1,G80,0) -> 0 | BB80: =IF(AZ80=2,G80,0) -> 0 | BC80: =IF(AZ80=3,G80,0) -> 0 | BD80: =IF(AZ80=4,G80,0) -> 0 | BE80: =IF(AZ80=5,G80,0) -> 0 | CA80: 1 | CB80: 1
C81: Výkopy: | E81: 0 | M81: Výkopy:
C82: Začátek provozního součtu | E82: 0 | M82: Začátek provozního součtu
C83: Stoka B-1 PVC DN150:5,62*1,00*(2,25+2,60)/2 | E83: 13.6285 | M83: Stoka B-1 PVC DN150:5,62*1,00*(2,25+2,60)/2
C84: (16,41-5,62)*1,00*(2,60+2,51)/2 | E84: 27.5684 | M84: (16,41-5,62)*1,00*(2,60+2,51)/2
C85: (21,48-16,41)*1,00*(2,51+2,65)/2 | E85: 13.0806 | M85: (21,48-16,41)*1,00*(2,51+2,65)/2
C86: (47,26-21,48)*1,00*(2,65+1,95)/2 | E86: 59.294 | M86: (47,26-21,48)*1,00*(2,65+1,95)/2
C87: Odpočet objemu ornice:-47,26*1,00*0,20 | E87: -9.452 | M87: Odpočet objemu ornice:-47,26*1,00*0,20
C88: Konec provozního součtu | E88: 104.1195 | M88: Konec provozního součtu
C89: V hornině tř. 3 - 5 :104,1195 | E89: 104.1195 | M89: V hornině tř. 3 - 5 :104,1195
C90: Odpočet zásypů zeminou:-77,4341 | E90: -77.4341 | M90: Odpočet zásypů zeminou:-77,4341
A91: 13 | B91: 174101101R00 | C91: Zásyp jam, rýh, šachet se zhutněním | D91: m3 | E91: 77.4341 | G91: =E91*F91 -> 0 | H91: 0 | I91: =E91*H91 -> 0 | J91: 0 | K91: =E91*J91 -> 0 | O91: 2 | AA91: 1 | AB91: 1 | AC91: 1 | AZ91: 1 | BA91: =IF(AZ91=1,G91,0) -> 0 | BB91: =IF(AZ91=2,G91,0) -> 0 | BC91: =IF(AZ91=3,G91,0) -> 0 | BD91: =IF(AZ91=4,G91,0) -> 0 | BE91: =IF(AZ91=5,G91,0) -> 0 | CA91: 1 | CB91: 1
C92: Položka obsahuje strojní přemístění materiálu pro zásyp ze vzdálenosti do 10 m od okraje zásypu. | L92: Položka obsahuje strojní přemístění materiálu pro zásyp ze vzdálenosti do 10 m od okraje zásypu. | O92: 3
C93: Zásypy zeminou: | E93: 0 | M93: Zásypy zeminou:
C94: Výkopy: | E94: 0 | M94: Výkopy:
C95: V hornině tř. 3 - 5 :104,1195 | E95: 104.1195 | M95: V hornině tř. 3 - 5 :104,1195
C96: Odpoče lože, potrubí a obsypů:-47,26*1,00*(0,10+0,15+0,30) | E96: -25.993 | M96: Odpoče lože, potrubí a obsypů:-47,26*1,00*(0,10+0,15+0,30)
C97: Odpočet objemu RŠ:-0,6924 | E97: -0.6924 | M97: Odpočet objemu RŠ:-0,6924
A98: 14 | B98: 175101101R00 | C98: Obsyp potrubí bez prohození sypaniny | D98: m3 | E98: 20.4318 | G98: =E98*F98 -> 0 | H98: 0 | I98: =E98*H98 -> 0 | J98: 0 | K98: =E98*J98 -> 0 | O98: 2 | AA98: 1 | AB98: 1 | AC98: 1 | AZ98: 1 | BA98: =IF(AZ98=1,G98,0) -> 0 | BB98: =IF(AZ98=2,G98,0) -> 0 | BC98: =IF(AZ98=3,G98,0) -> 0 | BD98: =IF(AZ98=4,G98,0) -> 0 | BE98: =IF(AZ98=5,G98,0) -> 0 | CA98: 1 | CB98: 1
C99: Stoka B-1 PVC DN150:47,26*(1,00*(0,15+0,30)-0,075^2*Pi) | E99: 20.4318 | M99: Stoka B-1 PVC DN150:47,26*(1,00*(0,15+0,30)-0,075^2*Pi)
A100: 15 | B100: 199000002R00 | C100: Poplatek za skládku horniny 1- 7 č. dle katal. odpadů 17 05 04 | D100: m3 | E100: 26.6854 | G100: =E100*F100 -> 0 | H100: 0 | I100: =E100*H100 -> 0 | J100: 0 | K100: =E100*J100 -> 0 | O100: 2 | AA100: 1 | AB100: 1 | AC100: 1 | AZ100: 1 | BA100: =IF(AZ100=1,G100,0) -> 0 | BB100: =IF(AZ100=2,G100,0) -> 0 | BC100: =IF(AZ100=3,G100,0) -> 0 | BD100: =IF(AZ100=4,G100,0) -> 0 | BE100: =IF(AZ100=5,G100,0) -> 0 | CA100: 1 | CB100: 1
C101: Výkopy: | E101: 0 | M101: Výkopy:
C102: Začátek provozního součtu | E102: 0 | M102: Začátek provozního součtu
C103: Stoka B-1 PVC DN150:5,62*1,00*(2,25+2,60)/2 | E103: 13.6285 | M103: Stoka B-1 PVC DN150:5,62*1,00*(2,25+2,60)/2
C104: (16,41-5,62)*1,00*(2,60+2,51)/2 | E104: 27.5684 | M104: (16,41-5,62)*1,00*(2,60+2,51)/2
C105: (21,48-16,41)*1,00*(2,51+2,65)/2 | E105: 13.0806 | M105: (21,48-16,41)*1,00*(2,51+2,65)/2
C106: (47,26-21,48)*1,00*(2,65+1,95)/2 | E106: 59.294 | M106: (47,26-21,48)*1,00*(2,65+1,95)/2
C107: Odpočet objemu ornice:-47,26*1,00*0,20 | E107: -9.452 | M107: Odpočet objemu ornice:-47,26*1,00*0,20
C108: Konec provozního součtu | E108: 104.1195 | M108: Konec provozního součtu
C109: V hornině tř. 3 - 5 :104,1195 | E109: 104.1195 | M109: V hornině tř. 3 - 5 :104,1195
C110: Odpočet zásypů zeminou:-77,4341 | E110: -77.4341 | M110: Odpočet zásypů zeminou:-77,4341
A111: 16 | B111: 58337330.R | C111: Štěrkopísek frakce 0-22 A | D111: t | E111: 40.7152 | G111: =E111*F111 -> 0 | H111: 1 | I111: =E111*H111 -> 40.7152 | K111: =E111*J111 -> 0 | O111: 2 | AA111: 3 | AB111: 1 | AC111: 58337330.R | AZ111: 1 | BA111: =IF(AZ111=1,G111,0) -> 0 | BB111: =IF(AZ111=2,G111,0) -> 0 | BC111: =IF(AZ111=3,G111,0) -> 0 | BD111: =IF(AZ111=4,G111,0) -> 0 | BE111: =IF(AZ111=5,G111,0) -> 0 | CA111: 3 | CB111: 1
C112: Stoka B-1 PVC DN150:47,26*(1,00*(0,15+0,30)-0,075^2*Pi)*1,973*1,01 | E112: 40.7152 | M112: Stoka B-1 PVC DN150:47,26*(1,00*(0,15+0,30)-0,075^2*Pi)*1,973*1,01
B113: Celkem za | C113: 1 Zemní práce | G113: =SUM(G7:G112) -> 0 | I113: =SUM(I7:I112) -> 40.91923307 | K113: =SUM(K7:K112) -> 0 | O113: 4 | BA113: =SUM(BA7:BA112) -> 0 | BB113: =SUM(BB7:BB112) -> 0 | BC113: =SUM(BC7:BC112) -> 0 | BD113: =SUM(BD7:BD112) -> 0 | BE113: =SUM(BE7:BE112) -> 0
A114: Díl: | B114: 2 | C114: Základy a zvláštní zakládání | O114: 1
A115: 17 | B115: 212810010RAC | C115: Trativody z PVC drenážních flexibilních trubek lože štěrkopísek a obsyp kamenivo, trubky d 100 mm | D115: m | E115: 47.26 | G115: =E115*F115 -> 0 | H115: 0.43651 | I115: =E115*H115 -> 20.6294626 | J115: 0 | K115: =E115*J115 -> 0 | O115: 2 | AA115: 1 | AB115: 1 | AC115: 1 | AZ115: 1 | BA115: =IF(AZ115=1,G115,0) -> 0 | BB115: =IF(AZ115=2,G115,0) -> 0 | BC115: =IF(AZ115=3,G115,0) -> 0 | BD115: =IF(AZ115=4,G115,0) -> 0 | BE115: =IF(AZ115=5,G115,0) -> 0 | CA115: 1 | CB115: 1
C116: Součástí položky je i výkop pro drenáž včetně odvozu zeminy na skládku a poplatku za skládku zeminy. | L116: Součástí položky je i výkop pro drenáž včetně odvozu zeminy na skládku a poplatku za skládku zeminy. | O116: 3
C117: Stoka B-1 PVC DN150:47,26 | E117: 47.26 | M117: Stoka B-1 PVC DN150:47,26
A118: 18 | B118: 212971110R00 | C118: Opláštění trativodů z geotext., do sklonu 1:2,5 | D118: m2 | E118: 47.26 | G118: =E118*F118 -> 0 | H118: 0.00018 | I118: =E118*H118 -> 0.0085068 | J118: 0 | K118: =E118*J118 -> 0 | O118: 2 | AA118: 1 | AB118: 1 | AC118: 1 | AZ118: 1 | BA118: =IF(AZ118=1,G118,0) -> 0 | BB118: =IF(AZ118=2,G118,0) -> 0 | BC118: =IF(AZ118=3,G118,0) -> 0 | BD118: =IF(AZ118=4,G118,0) -> 0 | BE118: =IF(AZ118=5,G118,0) -> 0 | CA118: 1 | CB118: 1
C119: Stoka B-1 PVC DN150:47,26*1,00 | E119: 47.26 | M119: Stoka B-1 PVC DN150:47,26*1,00
A120: 19 | B120: 67390503.R | C120: Geotextilie netkaná 300 g/m2 | D120: m2 | E120: 56.712 | G120: =E120*F120 -> 0 | H120: 0.0003 | I120: =E120*H120 -> 0.0170136 | K120: =E120*J120 -> 0 | O120: 2 | AA120: 3 | AB120: 1 | AC120: 67390503.R | AZ120: 1 | BA120: =IF(AZ120=1,G120,0) -> 0 | BB120: =IF(AZ120=2,G120,0) -> 0 | BC120: =IF(AZ120=3,G120,0) -> 0 | BD120: =IF(AZ120=4,G120,0) -> 0 | BE120: =IF(AZ120=5,G120,0) -> 0 | CA120: 3 | CB120: 1
C121: Stoka B-1 PVC DN150:47,26*1,00*1,2 | E121: 56.712 | M121: Stoka B-1 PVC DN150:47,26*1,00*1,2
B122: Celkem za | C122: 2 Základy a zvláštní zakládání | G122: =SUM(G114:G121) -> 0 | I122: =SUM(I114:I121) -> 20.654983 | K122: =SUM(K114:K121) -> 0 | O122: 4 | BA122: =SUM(BA114:BA121) -> 0 | BB122: =SUM(BB114:BB121) -> 0 | BC122: =SUM(BC114:BC121) -> 0 | BD122: =SUM(BD114:BD121) -> 0 | BE122: =SUM(BE114:BE121) -> 0
A123: Díl: | B123: 45 | C123: Podkladní a vedlejší konstrukce | O123: 1
A124: 20 | B124: 451572111R00 | C124: Lože pod potrubí z kameniva těženého 0 - 4 mm | D124: m3 | E124: 4.726 | G124: =E124*F124 -> 0 | H124: 0.43051 | I124: =E124*H124 -> 2.03459026 | J124: 0 | K124: =E124*J124 -> 0 | O124: 2 | AA124: 1 | AB124: 1 | AC124: 1 | AZ124: 1 | BA124: =IF(AZ124=1,G124,0) -> 0 | BB124: =IF(AZ124=2,G124,0) -> 0 | BC124: =IF(AZ124=3,G124,0) -> 0 | BD124: =IF(AZ124=4,G124,0) -> 0 | BE124: =IF(AZ124=5,G124,0) -> 0 | CA124: 1 | CB124: 1
C125: Stoka B-1 PVC DN150:47,26*1,00*0,10 | E125: 4.726 | M125: Stoka B-1 PVC DN150:47,26*1,00*0,10
B126: Celkem za | C126: 45 Podkladní a vedlejší konstrukce | G126: =SUM(G123:G125) -> 0 | I126: =SUM(I123:I125) -> 2.03459026 | K126: =SUM(K123:K125) -> 0 | O126: 4 | BA126: =SUM(BA123:BA125) -> 0 | BB126: =SUM(BB123:BB125) -> 0 | BC126: =SUM(BC123:BC125) -> 0 | BD126: =SUM(BD123:BD125) -> 0 | BE126: =SUM(BE123:BE125) -> 0
A127: Díl: | B127: 8 | C127: Trubní vedení | O127: 1
A128: 21 | B128: 871313121R00 | C128: Montáž trub z plastu, gumový kroužek, DN 150 | D128: m | E128: 47.26 | G128: =E128*F128 -> 0 | H128: 0 | I128: =E128*H128 -> 0 | J128: 0 | K128: =E128*J128 -> 0 | O128: 2 | AA128: 1 | AB128: 1 | AC128: 1 | AZ128: 1 | BA128: =IF(AZ128=1,G128,0) -> 0 | BB128: =IF(AZ128=2,G128,0) -> 0 | BC128: =IF(AZ128=3,G128,0) -> 0 | BD128: =IF(AZ128=4,G128,0) -> 0 | BE128: =IF(AZ128=5,G128,0) -> 0 | CA128: 1 | CB128: 1
C129: V položce je uvažováno s jedním spojem na 6 m potrubí. Položka je určena pro montáž potrubí z kanalizačních trub z plastu těsněných gumovým kroužkem v otevřeném výkopu ve sklonu do 20 %. | L129: V položce je uvažováno s jedním spojem na 6 m potrubí. Položka je určena pro montáž potrubí z kanalizačních trub z plastu těsněných gumovým kroužkem v otevřeném výkopu ve sklonu do 20 %. | O129: 3
C130: V položce montáže potrubí nejsou zakalkulovány náklady na dodání trub; tyto náklady se oceňují ve specifikaci. | L130: V položce montáže potrubí nejsou zakalkulovány náklady na dodání trub; tyto náklady se oceňují ve specifikaci. | O130: 3
C131: Stoka B-1 PVC DN150:47,26 | E131: 47.26 | M131: Stoka B-1 PVC DN150:47,26
A132: 22 | B132: 877375175RRR | C132: Propojení nového potrubí na stávající RŠ vč. dodávky propojovacích tvarovek | D132: kus | E132: 1 | G132: =E132*F132 -> 0 | H132: 0.01435 | I132: =E132*H132 -> 0.01435 | J132: 0 | K132: =E132*J132 -> 0 | O132: 2 | AA132: 1 | AB132: 1 | AC132: 1 | AZ132: 1 | BA132: =IF(AZ132=1,G132,0) -> 0 | BB132: =IF(AZ132=2,G132,0) -> 0 | BC132: =IF(AZ132=3,G132,0) -> 0 | BD132: =IF(AZ132=4,G132,0) -> 0 | BE132: =IF(AZ132=5,G132,0) -> 0 | CA132: 1 | CB132: 1
C133: Položka je určena pro napojení nového potrubí DN150 na stávající RŠ. | L133: Položka je určena pro napojení nového potrubí DN150 na stávající RŠ. | O133: 3
C134: V položce jsou zakalkulovány i náklady na dodání propojovacích tvarovek a případné vyvrtání otvorů do betonových skruží nebo dna stávající RŠ. | L134: V položce jsou zakalkulovány i náklady na dodání propojovacích tvarovek a případné vyvrtání otvorů do betonových skruží nebo dna stávající RŠ. | O134: 3
A135: 23 | B135: 892601122R00 | C135: Čištění kanalizační stoky do DN 200, do 50 m | D135: m | E135: 47.26 | G135: =E135*F135 -> 0 | H135: 0 | I135: =E135*H135 -> 0 | J135: 0 | K135: =E135*J135 -> 0 | O135: 2 | AA135: 1 | AB135: 1 | AC135: 1 | AZ135: 1 | BA135: =IF(AZ135=1,G135,0) -> 0 | BB135: =IF(AZ135=2,G135,0) -> 0 | BC135: =IF(AZ135=3,G135,0) -> 0 | BD135: =IF(AZ135=4,G135,0) -> 0 | BE135: =IF(AZ135=5,G135,0) -> 0 | CA135: 1 | CB135: 1
C136: V položce je zakalkulováno: | L136: V položce je zakalkulováno: | O136: 3
C137: a) otevření a uzavření revizních šachet a čisticích kusů | L137: a) otevření a uzavření revizních šachet a čisticích kusů | O137: 3
C138: b) natažení vysokotlakých hadic k místu odkud se bude kanalizace čistit | L138: b) natažení vysokotlakých hadic k místu odkud se bude kanalizace čistit | O138: 3
C139: c) vyčištění potrubí tlakovou vodou nebo motorovým pérem. | L139: c) vyčištění potrubí tlakovou vodou nebo motorovým pérem. | O139: 3
C140: Stoka B-1 PVC DN150:47,26 | E140: 47.26 | M140: Stoka B-1 PVC DN150:47,26
A141: 24 | B141: 892855112R00 | C141: Kontrola kanalizace TV kamerou do 50 m | D141: m | E141: 47.26 | G141: =E141*F141 -> 0 | H141: 0 | I141: =E141*H141 -> 0 | J141: 0 | K141: =E141*J141 -> 0 | O141: 2 | AA141: 1 | AB141: 1 | AC141: 1 | AZ141: 1 | BA141: =IF(AZ141=1,G141,0) -> 0 | BB141: =IF(AZ141=2,G141,0) -> 0 | BC141: =IF(AZ141=3,G141,0) -> 0 | BD141: =IF(AZ141=4,G141,0) -> 0 | BE141: =IF(AZ141=5,G141,0) -> 0 | CA141: 1 | CB141: 1
C142: Stoka B-1 PVC DN150:47,26 | E142: 47.26 | M142: Stoka B-1 PVC DN150:47,26
A143: 25 | B143: 894431441RAA | C143: Šachta D 600 mm, dl.šach.roury 3,00 m, přímá dno KG D 160 mm, poklop litina 12,5 t | D143: kus | E143: 1 | G143: =E143*F143 -> 0 | H143: 0.16732 | I143: =E143*H143 -> 0.16732 | J143: 0 | K143: =E143*J143 -> 0 | O143: 2 | AA143: 1 | AB143: 1 | AC143: 1 | AZ143: 1 | BA143: =IF(AZ143=1,G143,0) -> 0 | BB143: =IF(AZ143=2,G143,0) -> 0 | BC143: =IF(AZ143=3,G143,0) -> 0 | BD143: =IF(AZ143=4,G143,0) -> 0 | BE143: =IF(AZ143=5,G143,0) -> 0 | CA143: 1 | CB143: 1
C144: Plastové dno, šachta z korugované trouby, těsnění, teleskopický adaptér, rám do teleskopu, poklop litinový. | L144: Plastové dno, šachta z korugované trouby, těsnění, teleskopický adaptér, rám do teleskopu, poklop litinový. | O144: 3
C145: Stoka B-1 PVC DN150: | E145: 0 | M145: Stoka B-1 PVC DN150:
C146: RŠ DN400:1 | E146: 1 | M146: RŠ DN400:1
A147: 26 | B147: 286111904.R | C147: Trubka kanalizační PVC QUANTUM SN 12 DN 150 | D147: m | E147: 48.6778 | G147: =E147*F147 -> 0 | H147: 0.0051 | I147: =E147*H147 -> 0.24825678 | K147: =E147*J147 -> 0 | O147: 2 | AA147: 3 | AB147: 1 | AC147: 286111904.R | AZ147: 1 | BA147: =IF(AZ147=1,G147,0) -> 0 | BB147: =IF(AZ147=2,G147,0) -> 0 | BC147: =IF(AZ147=3,G147,0) -> 0 | BD147: =IF(AZ147=4,G147,0) -> 0 | BE147: =IF(AZ147=5,G147,0) -> 0 | CA147: 3 | CB147: 1
C148: Jedná se o plnostěnné kanalizační trubky DN 150 – DN 400, min. SN 12 kN/m2 , zvenčí i zevnitř hladké. Jsou opatřeny hrdlem, v němž je vložen vysoce elastický jazýčkový kroužek. konce trubek (dříků) jsou opatřeny zkosením pod úhlem 15°. Způsob použití trubek je „U“ dle normy ČSN EN 1401-1, tj. mimo budovy. Spolehlivá funkce těsnění je jištěna výztužným kroužkem z elastomeru. Je tak zamezeno vypad-nutí nebo vytlačení kroužku při manipulaci a montáži. Tento systém zaručuje při správné montáži | L148: Jedná se o plnostěnné kanalizační trubky DN 150 – DN 400, min. SN 12 kN/m2 , zvenčí i zevnitř hladké. Jsou opatřeny hrdlem, v němž je vložen vysoce elastický jazýčkový kroužek. konce trubek (dříků) jsou opatřeny zkosením pod úhlem 15°. Způsob použití trubek je „U“ dle normy ČSN EN 1401-1, tj. mimo budovy. Spolehlivá funkce těsnění je jištěna výztužným kroužkem z elastomeru. Je tak zamezeno vypad-nutí nebo vytlačení kroužku při manipulaci a montáži. Tento systém zaručuje při správné montáži | O148: 3
C149: dokonalou těsnost do výšky vodního sloupce 5 metrů. | L149: dokonalou těsnost do výšky vodního sloupce 5 metrů. | O149: 3
C150: Teplota při pokládce: min. -10 °C, max. 50 °C | L150: Teplota při pokládce: min. -10 °C, max. 50 °C | O150: 3
C151: Max. teplota média: trvale do 40 °C, krátkodobě do 60 °C | L151: Max. teplota média: trvale do 40 °C, krátkodobě do 60 °C | O151: 3
C152: Orientační výška krytí: min. 0,5 m, max. 10 m | L152: Orientační výška krytí: min. 0,5 m, max. 10 m | O152: 3
C153: Max. rychlost média: 12 m/s | L153: Max. rychlost média: 12 m/s | O153: 3
C154: Stoka B-1 PVC DN150:47,26*1,03 | E154: 48.6778 | M154: Stoka B-1 PVC DN150:47,26*1,03
B155: Celkem za | C155: 8 Trubní vedení | G155: =SUM(G127:G154) -> 0 | I155: =SUM(I127:I154) -> 0.42992678 | K155: =SUM(K127:K154) -> 0 | O155: 4 | BA155: =SUM(BA127:BA154) -> 0 | BB155: =SUM(BB127:BB154) -> 0 | BC155: =SUM(BC127:BC154) -> 0 | BD155: =SUM(BD127:BD154) -> 0 | BE155: =SUM(BE127:BE154) -> 0
A156: Díl: | B156: 99 | C156: Staveništní přesun hmot | O156: 1
A157: 27 | B157: 998276101R00 | C157: Přesun hmot, trubní vedení plastová, otevř. výkop | D157: t | E157: 64.03873311 | G157: =E157*F157 -> 0 | H157: 0 | I157: =E157*H157 -> 0 | K157: =E157*J157 -> 0 | O157: 2 | AA157: 7 | AB157: 1 | AC157: 2 | AZ157: 1 | BA157: =IF(AZ157=1,G157,0) -> 0 | BB157: =IF(AZ157=2,G157,0) -> 0 | BC157: =IF(AZ157=3,G157,0) -> 0 | BD157: =IF(AZ157=4,G157,0) -> 0 | BE157: =IF(AZ157=5,G157,0) -> 0 | CA157: 7 | CB157: 1
B158: Celkem za | C158: 99 Staveništní přesun hmot | G158: =SUM(G156:G157) -> 0 | I158: =SUM(I156:I157) -> 0 | K158: =SUM(K156:K157) -> 0 | O158: 4 | BA158: =SUM(BA156:BA157) -> 0 | BB158: =SUM(BB156:BB157) -> 0 | BC158: =SUM(BC156:BC157) -> 0 | BD158: =SUM(BD156:BD157) -> 0 | BE158: =SUM(BE156:BE157) -> 0

Sheet OaVNS
A1: Položkový rozpočet
A3: Stavba : | C3: 3341 Přepojení ČSOV Hančova bouda Benecko | E3: Rozpočet: | F3: OaVNS
A4: Objekt : | C4: OaVNS - Ostatní a vedlejší náklady stavby
A6: P.č. | B6: Číslo položky | C6: Název položky | D6: MJ | E6: množství | F6: cena / MJ | G6: celkem (Kč) | H6: Jednotková hmotnost | I6: Celková hmotnost | J6: Jednotková dem.hmot. | K6: Celková dem.hmot.
A7: Díl: | B7: 950 | C7: Ostatní náklady stavby
A8: 1 | B8: 950 99-0001.ONS | C8: Zajištění prostoru a vybudování zařízení staveniště včetně potřebných staveništních komunikací | D8: soubor | E8: 1 | G8: =SUM(E8*F8) -> 0 | H8: 0.00869 | I8: =E8*H8 -> 0.00869 | J8: 0 | K8: =E8*J8 -> 0 | BN8: 1 | BO8: 1
A9: 2 | B9: 950 99-0003.ONS | C9: Zajištění bezpečnosti při provádění stavby ve smyslu bezpečnosti práce i ochrany životního prostředí a zeleně | D9: soubor | E9: 1 | G9: =SUM(E9*F9) -> 0
A10: 3 | B10: 950 99-0005.ONS | C10: Vytýčení stavby a hranic pozemků při provádění stavby | D10: soubor | E10: 1 | G10: 0
A11: 4 | B11: 950 99-0006.ONS | C11: Zajištění včasného oznámení o zahájení prací majitelům pozemků a správců sítí dotčených stavbou | D11: soubor | E11: 1 | G11: 0
A12: 5 | B12: 950 99-0007.ONS | C12: Spolupráce s vlastníky pozemků při případném uvolnění pozemků pro stavbu (např. skládky osobního materiálu vlastníků) | D12: soubor | E12: 1 | G12: 0 | H12: 0.02478 | I12: =E12*H12 -> 0.02478 | J12: 0 | K12: =E12*J12 -> 0 | BN12: 1 | BO12: 1
A13: 6 | B13: 950 99-0008.ONS | C13: Zajištění vytýčení podzemních zařízení, a v případě jejich křížení či souběhu v otevřeném výkopu, jejich písemné předání zpět jejich správcům před zásypem | D13: soubor | E13: 1 | G13: 0
A14: 7 | B14: 950 99-0009.ONS | C14: Vypracování a projednání návrhu dočasných dopravních opatření (případně i po etapách dle zvoleného postupu prací zhotovitelem) | D14: soubor | E14: 1 | G14: 0
A15: 8 | B15: 950 99-0010.ONS | C15: Zajištění povolení zvláštního užívání komunikací v souladu s postupem výstavby,včetně správních poplatků a povolení k užívání dalších, stavbou dotčených pozemků (skládky materiálu, mezideponie atd.) | D15: soubor | E15: 1 | G15: 0
A16: 9 | B16: 950 99-0011.ONS | C16: Zřízení, údržba a likvidace dopravního opatření po dobu realizace stavby (případně i po etapách dle zvoleného postupu prací zhotovitelem) | D16: soubor | E16: 1 | G16: 0 | H16: 0 | I16: =E16*H16 -> 0 | J16: 0 | K16: =E16*J16 -> 0 | BN16: 1 | BO16: 1
A17: 10 | B17: 950 99-0013.ONS | C17: Zajištění činnosti odpovědného geodeta zhotovitele | D17: soubor | E17: 1 | G17: 0
A18: 11 | B18: 950 99-0014.ONS | C18: Zajištění činnosti odpovědného geologa zhotovitele | D18: soubor | E18: 1 | G18: 0
A19: 12 | B19: 950 99-0015.ONS | C19: Zajištění čistoty na staveništi a v jeho okolí, zajištění každodenního čištění komunikací dotčených provozem zhotovitele | D19: soubor | E19: 1 | G19: 0
A20: 13 | B20: 950 99-0016.ONS | C20: Fotodokumentace průběhu díla; zhotovitel zajistí a předá objednateli průběžnou fotodokumentaci realizace díla. Fotodokumentace bude dokladovat průběh díla a bude zejména dokumentovat části stavby a konstrukce před jejich zakrytím | D20: soubor | E20: 1 | G20: 0
A21: 14 | B21: 950 99-0017.ONS | C21: Péče o nepředané objekty nebo jejich části a konstrukce stavby, jejich ošetřování a nutný rozsah pojištění | D21: soubor | E21: 1 | G21: 0 | H21: 0 | I21: =E21*H21 -> 0 | J21: 0 | K21: =E21*J21 -> 0 | BN21: 1 | BO21: 1
A22: 15 | B22: 950 99-0018.ONS | C22: Zkoušky hutnění komunikací a rýh dle ČSN a EN | D22: soubor | E22: 1 | G22: 0
A23: 16 | B23: 950 99-0021.ONS | C23: Inženýrská a kompletační činnost zhotovitele včetně koordinace prací na VH sítí a komunikace s realizací investiční akce ČEZu. | D23: soubor | E23: 1 | G23: 0
A24: 17 | B24: 950 99-0022.ONS | C24: Zhotovení dokumentace skutečného provedení díla | D24: soubor | E24: 1 | G24: 0
A25: 18 | B25: 950 99-0023.ONS | C25: Geodetické zaměření stavby | D25: soubor | E25: 1 | G25: 0
A26: 19 | B26: 950 99-0024.ONS | C26: Pasportizace objektů a komunikací před zahájením stavby včetně předání fotokokumentace investorovi stavby v digitální a tištěné podobě. | D26: soubor | E26: 1 | G26: 0
A27: 20 | B27: 950 99-0028.ONS | C27: Ostatní činnosti nutné ke zdárnému provedení díla, které jsou vymezeny zejména v technické specifikaci stavby | D27: soubor | E27: 1 | G27: 0
B29: ONS Celkem | G29: =SUM(G8:G27) -> 0
